Workbook

Sheet About
B3: FlowProfile v2022
B5: 2022-03-02
B7: Hydraulic Modelling of Flow Profiles
B8: 1D Calculation of section averaged depths and velocities through a system of channel and structure elements, based on a combination of Gradually Varied Flow and Rapidly Varied Flow calculations. Can be used to model multi-slope culverts and constrictive bridge openings.
B10: Update History:
B11: Apr. 7, 2009 - creation of first trial version
B12: Sep 25, 2009 - fix bug in ellipse geometry routine
B13: Mar 8, 2010 - fix bug in friction slope calculation using AT equation
B14: Apr 16, 2010 - fix bug in normal depth calculation when max flow exceeded
B15: Dec 29, 2010 - mod mean depth ("R") for trapezoidal channels with Y > h, add def. chan length
B16: Dec 30, 2010 - add Bridge XS Plot, fix default BC input
B17: Jan 4, 2011 - fix bug for Ynorm in adverse slope
B18: Mar 3, 2011 - fix bug in top profile for trapezoidal channel
B19: May 25, 2011 - fix bug in top profile for Full-M2 profile
B20: Mar 25, 2012 - add substrate option for culverts to facilitate fish passage analysis
B21: Mar 1, 2015 - change upper bound for solutions in trapezoidal channels in extreme flows
B22: Mar 2, 2015 - add percent flow input to facilitate iterative analysis for multiple parallel culverts
B23: Mar 2, 2015 - options moved to separate Tab (from Instructions Tab)
B24: Dec 21, 2021 - added low flow warning, and max substrate height warning
B25: Feb 28, 2022 - increased max number of sections to 20

Sheet Options
A10: Options
A12: Loss Coefficient
A13: Contraction | B13: 0.3
A14: Expansion | B14: 0.5
A16: Default Roughness Coefficient
A17: Arch | B17: 0.013
A18: Box | B18: 0.013
A19: Ellipse | B19: 0.028
A20: Round | B20: 0.028
A21: Trapezoid
A23: #Pts per Element | B23: 31
A24: Default Channel Length (m) | B24: 50

Sheet Instructions
A2: Data Entry | B2: 1 | C2: Enter options such as expansion/contraction loss coefficients and roughness coefficients on "Options" sheet. Enter channel/structure geometry data on "Input" screen. Enter boundary condition (Q, d/s depth) on "Input" sheet.
B3: 1a | C3: Alternatively, fill in data on the Templates sheet for a channel and a bridge or culvert, and the necessary data will be filled in on the "Input" sheet. This data can be customized before running the hydraulic analysis.
A5: Run | B5: 2 | C5: Click the "Run" button on the "Input" sheet to perform the hydraulic analysis and display results.
A7: Output | B7: 3 | C7: A summary of the results can be seen on the ""Results" sheet. Detailed profile data can be seen on the "Profile" sheet. A plot of the results can be seen on the "Plot" sheet.
A9: Multiple Parallel Culverts | B9: Opt | C9: Enter a % flow value for the culvert being analysed (between 0 and 100). Note the energy grade line value (E ) at the d/s section of the u/s transition element. Do this for all other parallel culverts at the crossing - separate analysis files. Do again (iteratively), varying % flow for each culvert until the sum of % flow = 100 and the E value at the d/s end of the u/s transition is the same for all culverts. Note: Use 50% for 2 pipes of the same configuration (no need for iteration)

Sheet Templates
A2: Typical Channel | D2: Single Culvert | G2: Bridge
A4: B | B4: 3 | D4: Shape | E4: R | G4: B | H4: 8 | AA4: =-1.5*B6/2 -> -4.5 | AB4: =B8+B5 -> 1001.5 | AD4: =AD5-H5*(B5+1) -> -9 | AE4: =AE5+B5+1 -> 1002.5
A5: h | B5: 1.5 | D5: Rise | E5: 2.2 | G5: m | H5: 2 | AA5: =-1*B6/2 -> -3 | AB5: =AB4 -> 1001.5 | AD5: =-1*H4/2 -> -4 | AE5: =B8 -> 1000
A6: T | B6: 6 | D6: Span | G6: W | H6: 20 | AA6: =-B4/2 -> -1.5 | AB6: =B8 -> 1000 | AD6: =-1*AD5 -> 4 | AE6: =AE5 -> 1000
A7: S | B7: 0.01 | D7: Length | E7: 37 | AA7: =-1*AA6 -> 1.5 | AB7: =AB6 -> 1000 | AD7: =-1*AD4 -> 9 | AE7: =AE4 -> 1002.5
A8: Elev | B8: 1000 | D8: Burial | E8: 0 | AA8: =-1*AA5 -> 3 | AB8: =AB5 -> 1001.5
D9: Ltrans | E9: 0.1 | AA9: =-1*AA4 -> 4.5 | AB9: =AB8 -> 1001.5
A13: Channel Capacity Calculator
E14: h | F14: Ycc | G14: Yspec | H14: Q2 | J14: Yfpd Calc | K14: Yfpd
A15: S | B15: 0.04 | D15: Y | E15: =B17 -> 0.8 | F15: =IF(B17>2,B17+1,IF(B17<1,B17+0.5,B17+0.5*B17)) -> 1.3 | G15: 0.2 | J15: =0.8-(34.3*B15) -> -0.572 | K15: =IF(J15<0,0.2,J15) -> 0.2 | AB15: =IF(C17<4,0.05,IF(C17<7,0.045,IF(C17<10,0.04,"AT"))) -> 0.05
A16: B | B16: 1 | D16: A | E16: =(B16+B18)/2*B17 -> 1.6 | F16: =E16+(F15-E15)*B18 -> 3.1 | G16: =IF(G15<B17,((B16+G15/B17*(B18-B16))+B16)/2*G15,E16+B18*(G15-B17)) -> 0.25 | AB16: =IF(AND(C16<=0.0005,C17>=8),-0.005,IF(AND(C16>=0.005,C16<0.015),0.005,IF(C16>0.015,0.01,0))) -> 0
A17: h | B17: 0.8 | D17: d | E17: =IF(B19="",E16/B18,E16/(B16+2*(((B18-B16)/2)^2+B17^2)^0.5)) -> 0.4492804878 | F17: =E17+(F15-E15) -> 0.9492804878 | G17: =IF(B19="", IF(G15<B17,G16/(B16+G15/B17*(B18-B16)),E17+(G15-B17)),IF(G15<B17,G16/(B16+2*(((G15/B17*(B18-B16))/2)^2+G15^2)^0.5),E17+(G15-B17))) -> 0.1524099899 | AB17: =AB15+AB16 -> 0.05
A18: Th | B18: 3 | D18: V | E18: =IF(B19="",14*E17^0.67*B15^0.4,1/B19*E17^0.667*B15^0.5) -> 1.954825323 | F18: =IF(B19="",14*F17^0.67*B15^0.4,1/B19*F17^0.667*B15^0.5) -> 3.219592543 | G18: =IF(B19="",14*G17^0.67*B15^0.4,1/B19*G17^0.667*B15^0.5) -> 0.9504925256
A19: Roughness | B19: 0.06 | D19: Q | E19: =E18*E16 -> 3.127720516 | F19: =F18*F16 -> 9.980736885 | G19: =G18*G16 -> 0.2376231314 | H19: =IF(B15<0.01,B23/(4+600*B15),B23/10) -> 1
A20: HDG 'n' | B20: =IF(B16<10,Z16,"") -> 0
A22: Summary
A23: Qdes | B23: 10 | C23: Qfpd | D23: 0.2
A24: Vdes | B24: 3.2 | C24: Vfpd | D24: 1
A25: Ydes | B25: 1.3 | C25: Yfpd | D25: 0.2
A27: Welcome to SPOT (fishprotectiontools.ca)

Sheet Input
B1: Boundary Conditions
B2: Q (cms) | C2: 0.5
B3: D/S BC Type
A5: No. | B5: Section Description | C5: U/S Elev | D5: D/S Elev | E5: Length | F5: Shape | G5: Rise / h | H5: Span / B | I5: T | J5: n | K5: Substrate | L5: n used | M5: S | N5: % Flow
A6: 1 | B6: D/S Channel | C6: 1000 | D6: 999.5 | E6: 50 | F6: T | G6: 1.5 | H6: 3 | I6: 6 | L6: 0.0549999997 | M6: =IF(C6<>"",(C6-D6)/E6,"") -> 0.01
A7: 2 | B7: D/S Transition | C7: 1000.001 | D7: 1000 | E7: 0.1 | F7: T | G7: 1.5 | H7: 3 | I7: 6 | J7: 0.05 | L7: 0.05000000075 | M7: 0.01
A8: 3 | B8: Culvert | C8: 1000.371 | D8: 1000.001 | E8: 37 | F8: R | G8: 2.2 | L8: 0.02800000086 | M8: 0.01 | N8: 100
A9: 4 | B9: U/S Transition | C9: 1000.372 | D9: 1000.371 | E9: 0.1 | F9: T | G9: 1.5 | H9: 3 | I9: 6 | J9: 0.05 | L9: 0.05000000075 | M9: 0.01
A10: 5 | B10: U/S Channel | C10: 1000.872 | D10: 1000.372 | E10: 50 | F10: T | G10: 1.5 | H10: 3 | I10: 6 | L10: 0.0549999997 | M10: 0.01

Sheet Results
F1: U/S | I1: D/S
A2: Element | B2: Description | C2: Yn | D2: Yc | E2: Profile | F2: Y | G2: V | H2: E | I2: Y | J2: V | K2: E | U2: Summary | V2: Qdes | W2: =Templates!B23 -> 10 | X2: Qfpd | Y2: =Templates!D23 -> 0.2
A3: 1 | B3: D/S Channel | C3: 0.2398194522 | D3: 0.1394369453 | E3: Normal | F3: 0.2398194522 | G3: 0.6435240507 | H3: 1000.260925 | I3: 0.2398194522 | J3: 0.6435240507 | K3: 999.7609253 | V3: Vdes | W3: =Templates!B24 -> 3.2 | X3: Vfpd | Y3: =Templates!D24 -> 1
A4: 2 | B4: D/S Transition | C4: 0.2280097008 | D4: 0.1394369453 | E4: M1 | F4: 0.2280097008 | G4: 0.6793316603 | H4: 1000.252502 | I4: 0.2399853915 | J4: 0.6430461407 | K4: 1000.261047 | V4: Ydes | W4: =Templates!B25 -> 1.3 | X4: Yfpd | Y4: =Templates!D25 -> 0.2
A5: 3 | B5: Culvert | C5: 0.3500448763 | D5: 0.3193610907 | E5: Normal-M2 | F5: 0.3500448763 | G5: 1.283900261 | H5: 1000.805054 | I5: 0.3193610907 | J5: 1.46646893 | K5: 1000.429993
A6: 4 | B6: U/S Transition | C6: 0.2237450778 | D6: 0.1394369453 | E6: M1 | F6: 0.4301662445 | G6: 0.3388586044 | H6: 1000.808044 | I6: 0.4426351786 | J6: 0.3281202912 | K6: 1000.819092
A7: 5 | B7: U/S Channel | C7: 0.2398194522 | D7: 0.1394369453 | E7: M1 | F7: 0.2398194522 | G7: 0.6435240507 | H7: 1001.132935 | I7: 0.4302121997 | J7: 0.3388178349 | K7: 1000.808105

Sheet Profile
A1: Element | B1: Station | C1: X | D1: Y | E1: V | F1: Invert | G1: Crown | H1: WL | I1: EGL
B2: (m) | C2: (m) | D2: (m) | E2: (m/s) | F2: (m) | G2: (m) | H2: (m) | I2: (m)
A3: 1 | B3: 0 | C3: 0 | D3: 0.2398194522 | E3: 0.6435240507 | F3: 999.5 | G3: 1001 | H3: 999.7398071 | I3: 999.7609253
A4: 1 | B4: 1.666666627 | C4: 1.666666627 | D4: 0.2398194522 | E4: 0.6435240507 | F4: 999.5166626 | G4: 1001.016663 | H4: 999.7564697 | I4: 999.7775879
A5: 1 | B5: 3.333333254 | C5: 3.333333254 | D5: 0.2398194522 | E5: 0.6435240507 | F5: 999.5333252 | G5: 1001.033325 | H5: 999.7731323 | I5: 999.7942505
A6: 1 | B6: 5 | C6: 5 | D6: 0.2398194522 | E6: 0.6435240507 | F6: 999.5499878 | G6: 1001.049988 | H6: 999.7897949 | I6: 999.8109131
A7: 1 | B7: 6.666666508 | C7: 6.666666508 | D7: 0.2398194522 | E7: 0.6435240507 | F7: 999.5666504 | G7: 1001.06665 | H7: 999.8064575 | I7: 999.8275757
A8: 1 | B8: 8.333333015 | C8: 8.333333015 | D8: 0.2398194522 | E8: 0.6435240507 | F8: 999.583313 | G8: 1001.083313 | H8: 999.8231812 | I8: 999.8442993
A9: 1 | B9: 10 | C9: 10 | D9: 0.2398194522 | E9: 0.6435240507 | F9: 999.5999756 | G9: 1001.099976 | H9: 999.8398438 | I9: 999.8609619
A10: 1 | B10: 11.66666698 | C10: 11.66666698 | D10: 0.2398194522 | E10: 0.6435240507 | F10: 999.6166382 | G10: 1001.116638 | H10: 999.8565063 | I10: 999.8776245
A11: 1 | B11: 13.33333302 | C11: 13.33333302 | D11: 0.2398194522 | E11: 0.6435240507 | F11: 999.6333618 | G11: 1001.133362 | H11: 999.8731689 | I11: 999.8942871
A12: 1 | B12: 15 | C12: 15 | D12: 0.2398194522 | E12: 0.6435240507 | F12: 999.6500244 | G12: 1001.150024 | H12: 999.8898315 | I12: 999.9109497
A13: 1 | B13: 16.66666603 | C13: 16.66666603 | D13: 0.2398194522 | E13: 0.6435240507 | F13: 999.666687 | G13: 1001.166687 | H13: 999.9064941 | I13: 999.9276123
A14: 1 | B14: 18.33333397 | C14: 18.33333397 | D14: 0.2398194522 | E14: 0.6435240507 | F14: 999.6833496 | G14: 1001.18335 | H14: 999.9231567 | I14: 999.9442749
A15: 1 | B15: 20 | C15: 20 | D15: 0.2398194522 | E15: 0.6435240507 | F15: 999.7000122 | G15: 1001.200012 | H15: 999.9398193 | I15: 999.9609375
A16: 1 | B16: 21.66666603 | C16: 21.66666603 | D16: 0.2398194522 | E16: 0.6435240507 | F16: 999.7166748 | G16: 1001.216675 | H16: 999.9564819 | I16: 999.9776001
A17: 1 | B17: 23.33333397 | C17: 23.33333397 | D17: 0.2398194522 | E17: 0.6435240507 | F17: 999.7333374 | G17: 1001.233337 | H17: 999.9731445 | I17: 999.9942627
A18: 1 | B18: 25 | C18: 25 | D18: 0.2398194522 | E18: 0.6435240507 | F18: 999.75 | G18: 1001.25 | H18: 999.9898071 | I18: 1000.010925
A19: 1 | B19: 26.66666603 | C19: 26.66666603 | D19: 0.2398194522 | E19: 0.6435240507 | F19: 999.7666626 | G19: 1001.266663 | H19: 1000.00647 | I19: 1000.027588
A20: 1 | B20: 28.33333397 | C20: 28.33333397 | D20: 0.2398194522 | E20: 0.6435240507 | F20: 999.7833252 | G20: 1001.283325 | H20: 1000.023132 | I20: 1000.04425
A21: 1 | B21: 30 | C21: 30 | D21: 0.2398194522 | E21: 0.6435240507 | F21: 999.7999878 | G21: 1001.299988 | H21: 1000.039795 | I21: 1000.060913
A22: 1 | B22: 31.66666603 | C22: 31.66666603 | D22: 0.2398194522 | E22: 0.6435240507 | F22: 999.8166504 | G22: 1001.31665 | H22: 1000.056458 | I22: 1000.077576
A23: 1 | B23: 33.33333206 | C23: 33.33333206 | D23: 0.2398194522 | E23: 0.6435240507 | F23: 999.833313 | G23: 1001.333313 | H23: 1000.073181 | I23: 1000.094299
A24: 1 | B24: 35 | C24: 35 | D24: 0.2398194522 | E24: 0.6435240507 | F24: 999.8499756 | G24: 1001.349976 | H24: 1000.089844 | I24: 1000.110962
A25: 1 | B25: 36.66666794 | C25: 36.66666794 | D25: 0.2398194522 | E25: 0.6435240507 | F25: 999.8666382 | G25: 1001.366638 | H25: 1000.106506 | I25: 1000.127625
A26: 1 | B26: 38.33333206 | C26: 38.33333206 | D26: 0.2398194522 | E26: 0.6435240507 | F26: 999.8833618 | G26: 1001.383362 | H26: 1000.123169 | I26: 1000.144287
A27: 1 | B27: 40 | C27: 40 | D27: 0.2398194522 | E27: 0.6435240507 | F27: 999.9000244 | G27: 1001.400024 | H27: 1000.139832 | I27: 1000.16095
A28: 1 | B28: 41.66666794 | C28: 41.66666794 | D28: 0.2398194522 | E28: 0.6435240507 | F28: 999.916687 | G28: 1001.416687 | H28: 1000.156494 | I28: 1000.177612
A29: 1 | B29: 43.33333206 | C29: 43.33333206 | D29: 0.2398194522 | E29: 0.6435240507 | F29: 999.9333496 | G29: 1001.43335 | H29: 1000.173157 | I29: 1000.194275
A30: 1 | B30: 45 | C30: 45 | D30: 0.2398194522 | E30: 0.6435240507 | F30: 999.9500122 | G30: 1001.450012 | H30: 1000.189819 | I30: 1000.210938
A31: 1 | B31: 46.66666794 | C31: 46.66666794 | D31: 0.2398194522 | E31: 0.6435240507 | F31: 999.9666748 | G31: 1001.466675 | H31: 1000.206482 | I31: 1000.2276
A32: 1 | B32: 48.33333206 | C32: 48.33333206 | D32: 0.2398194522 | E32: 0.6435240507 | F32: 999.9833374 | G32: 1001.483337 | H32: 1000.223145 | I32: 1000.244263
A33: 1 | B33: 50 | C33: 50 | D33: 0.2398194522 | E33: 0.6435240507 | F33: 1000 | G33: 1001.5 | H33: 1000.239807 | I33: 1000.260925
A34: 2 | B34: 50 | C34: 0 | D34: 0.2399853915 | E34: 0.6430461407 | F34: 1000 | G34: 1001.5 | H34: 1000.23999 | I34: 1000.261047
A35: 2 | B35: 50.00333405 | C35: 0.003333333414 | D35: 0.2396111488 | E35: 0.6441249251 | F35: 1000.000061 | G35: 1001.500061 | H35: 1000.239624 | I35: 1000.260803
A36: 2 | B36: 50.00666809 | C36: 0.006666666828 | D36: 0.2392486036 | E36: 0.645173192 | F36: 1000.000061 | G36: 1001.500061 | H36: 1000.239319 | I36: 1000.260559
A37: 2 | B37: 50.00999832 | C37: 0.01000000071 | D37: 0.2388973832 | E37: 0.6461917758 | F37: 1000.000122 | G37: 1001.500122 | H37: 1000.239014 | I37: 1000.260315
A38: 2 | B38: 50.01333237 | C38: 0.01333333366 | D38: 0.238557145 | E38: 0.6471813917 | F38: 1000.000122 | G38: 1001.500122 | H38: 1000.238708 | I38: 1000.260071
A39: 2 | B39: 50.01666641 | C39: 0.01666666754 | D39: 0.2382275462 | E39: 0.648142755 | F39: 1000.000183 | G39: 1001.500183 | H39: 1000.238403 | I39: 1000.259827
A40: 2 | B40: 50.02000046 | C40: 0.02000000142 | D40: 0.2379082441 | E40: 0.6490766406 | F40: 1000.000183 | G40: 1001.500183 | H40: 1000.238098 | I40: 1000.259583
A41: 2 | B41: 50.0233345 | C41: 0.02333333343 | D41: 0.2375989109 | E41: 0.6499837637 | F41: 1000.000244 | G41: 1001.500244 | H41: 1000.237854 | I41: 1000.259338
A42: 2 | B42: 50.02666855 | C42: 0.02666666731 | D42: 0.2372992337 | E42: 0.6508648396 | F42: 1000.000244 | G42: 1001.500244 | H42: 1000.237549 | I42: 1000.259155
A43: 2 | B43: 50.02999878 | C43: 0.03000000119 | D43: 0.2370089293 | E43: 0.6517205238 | F43: 1000.000305 | G43: 1001.500305 | H43: 1000.237305 | I43: 1000.258972
A44: 2 | B44: 50.03333282 | C44: 0.03333333507 | D44: 0.2367276996 | E44: 0.6525514126 | F44: 1000.000305 | G44: 1001.500305 | H44: 1000.237061 | I44: 1000.258789
A45: 2 | B45: 50.03666687 | C45: 0.03666666895 | D45: 0.2364552617 | E45: 0.6533583403 | F45: 1000.000366 | G45: 1001.500366 | H45: 1000.236816 | I45: 1000.258606
A46: 2 | B46: 50.04000092 | C46: 0.04000000283 | D46: 0.2361913323 | E46: 0.6541417837 | F46: 1000.000366 | G46: 1001.500366 | H46: 1000.236572 | I46: 1000.258423
A47: 2 | B47: 50.04333496 | C47: 0.04333333671 | D47: 0.2359356582 | E47: 0.654902339 | F47: 1000.000427 | G47: 1001.500427 | H47: 1000.236389 | I47: 1000.25824
A48: 2 | B48: 50.04666519 | C48: 0.04666666687 | D48: 0.235440284 | E48: 0.6563807726 | F48: 1000.000427 | G48: 1001.500427 | H48: 1000.235901 | I48: 1000.257874
A49: 2 | B49: 50.04999924 | C49: 0.05000000075 | D49: 0.2349758744 | E49: 0.6577724814 | F49: 1000.000488 | G49: 1001.500488 | H49: 1000.235474 | I49: 1000.257507
A50: 2 | B50: 50.05333328 | C50: 0.05333333462 | D50: 0.2345404923 | E50: 0.6590822339 | F50: 1000.000549 | G50: 1001.500549 | H50: 1000.235046 | I50: 1000.257202
A51: 2 | B51: 50.05666733 | C51: 0.0566666685 | D51: 0.2341323197 | E51: 0.6603145003 | F51: 1000.000549 | G51: 1001.500549 | H51: 1000.23468 | I51: 1000.256897
A52: 2 | B52: 50.06000137 | C52: 0.06000000238 | D52: 0.2337496579 | E52: 0.6614737511 | F52: 1000.00061 | G52: 1001.50061 | H52: 1000.234314 | I52: 1000.256653
A53: 2 | B53: 50.0633316 | C53: 0.06333333254 | D53: 0.2333909124 | E53: 0.6625640392 | F53: 1000.00061 | G53: 1001.50061 | H53: 1000.234009 | I53: 1000.256409
A54: 2 | B54: 50.06666565 | C54: 0.06666667014 | D54: 0.2330545783 | E54: 0.6635892391 | F54: 1000.000671 | G54: 1001.500671 | H54: 1000.233704 | I54: 1000.256165
A55: 2 | B55: 50.06999969 | C55: 0.07000000775 | D55: 0.2327392697 | E55: 0.6645530462 | F55: 1000.000671 | G55: 1001.500671 | H55: 1000.233398 | I55: 1000.25592
A56: 2 | B56: 50.07333374 | C56: 0.0733333379 | D56: 0.2324436754 | E56: 0.6654590368 | F56: 1000.000732 | G56: 1001.500732 | H56: 1000.233154 | I56: 1000.255737
A57: 2 | B57: 50.07666779 | C57: 0.07666666806 | D57: 0.2321665585 | E57: 0.6663104296 | F57: 1000.000732 | G57: 1001.500732 | H57: 1000.23291 | I57: 1000.255554
A58: 2 | B58: 50.08000183 | C58: 0.08000000566 | D58: 0.2319067568 | E58: 0.6671105027 | F58: 1000.000793 | G58: 1001.500793 | H58: 1000.232666 | I58: 1000.255371
A59: 2 | B59: 50.08333206 | C59: 0.08333333582 | D59: 0.2314196229 | E59: 0.6686155796 | F59: 1000.000793 | G59: 1001.500793 | H59: 1000.232239 | I59: 1000.255005
A60: 2 | B60: 50.08666611 | C60: 0.08666667342 | D60: 0.2309933901 | E60: 0.6699376702 | F60: 1000.000854 | G60: 1001.500854 | H60: 1000.231812 | I60: 1000.2547
A61: 2 | B61: 50.09000015 | C61: 0.09000000358 | D61: 0.2306204289 | E61: 0.6710985899 | F61: 1000.000854 | G61: 1001.500854 | H61: 1000.231506 | I61: 1000.254456
A62: 2 | B62: 50.0933342 | C62: 0.09333333373 | D62: 0.2302940786 | E62: 0.6721174717 | F62: 1000.000916 | G62: 1001.500916 | H62: 1000.231201 | I62: 1000.254211
A63: 2 | B63: 50.09666824 | C63: 0.09666667134 | D63: 0.2300085127 | E63: 0.6730114222 | F63: 1000.000916 | G63: 1001.500916 | H63: 1000.230957 | I63: 1000.254028
A64: 2 | B64: 50.09999847 | C64: 0.1000000015 | D64: 0.2280097008 | E64: 0.6793316603 | F64: 1000.000977 | G64: 1001.500977 | H64: 1000.229004 | I64: 1000.252502
A65: 3 | B65: 50.09999847 | C65: 0 | D65: 0.3193610907 | E65: 1.46646893 | F65: 1000.000977 | G65: 1002.200989 | H65: 1000.320312 | I65: 1000.429993
A66: 3 | B66: 51.33333206 | C66: 1.233333349 | D66: 0.3438122272 | E66: 1.317718506 | F66: 1000.013306 | G66: 1002.213318 | H66: 1000.357117 | I66: 1000.445679
A67: 3 | B67: 52.56666565 | C67: 2.466666698 | D67: 0.3465389907 | E67: 1.30273664 | F67: 1000.025635 | G67: 1002.225647 | H67: 1000.372192 | I67: 1000.45874
A68: 3 | B68: 53.79999924 | C68: 3.700000048 | D68: 0.3478536904 | E68: 1.295617819 | F68: 1000.037964 | G68: 1002.237976 | H68: 1000.385803 | I68: 1000.471436
A69: 3 | B69: 55.03333282 | C69: 4.933333397 | D69: 0.3500448763 | E69: 1.283900261 | F69: 1000.050293 | G69: 1002.250305 | H69: 1000.40033 | I69: 1000.484375
A70: 3 | B70: 56.26666641 | C70: 6.166666508 | D70: 0.3500448763 | E70: 1.283900261 | F70: 1000.062622 | G70: 1002.262634 | H70: 1000.412659 | I70: 1000.496765
A71: 3 | B71: 57.5 | C71: 7.400000095 | D71: 0.3500448763 | E71: 1.283900261 | F71: 1000.074951 | G71: 1002.274963 | H71: 1000.425049 | I71: 1000.509094
A72: 3 | B72: 58.73332977 | C72: 8.633333206 | D72: 0.3500448763 | E72: 1.283900261 | F72: 1000.08728 | G72: 1002.287292 | H72: 1000.437378 | I72: 1000.521423
A73: 3 | B73: 59.96666718 | C73: 9.866666794 | D73: 0.3500448763 | E73: 1.283900261 | F73: 1000.09967 | G73: 1002.299622 | H73: 1000.449707 | I73: 1000.533752
A74: 3 | B74: 61.19999695 | C74: 11.10000038 | D74: 0.3500448763 | E74: 1.283900261 | F74: 1000.112 | G74: 1002.311951 | H74: 1000.462036 | I74: 1000.546082
A75: 3 | B75: 62.43333054 | C75: 12.33333302 | D75: 0.3500448763 | E75: 1.283900261 | F75: 1000.124329 | G75: 1002.32428 | H75: 1000.474365 | I75: 1000.558411
A76: 3 | B76: 63.66666412 | C76: 13.5666666 | D76: 0.3500448763 | E76: 1.283900261 | F76: 1000.136658 | G76: 1002.33667 | H76: 1000.486694 | I76: 1000.57074
A77: 3 | B77: 64.90000153 | C77: 14.80000019 | D77: 0.3500448763 | E77: 1.283900261 | F77: 1000.148987 | G77: 1002.348999 | H77: 1000.499023 | I77: 1000.583069
A78: 3 | B78: 66.1333313 | C78: 16.03333282 | D78: 0.3500448763 | E78: 1.283900261 | F78: 1000.161316 | G78: 1002.361328 | H78: 1000.511353 | I78: 1000.595398
A79: 3 | B79: 67.3666687 | C79: 17.26666641 | D79: 0.3500448763 | E79: 1.283900261 | F79: 1000.173645 | G79: 1002.373657 | H79: 1000.523682 | I79: 1000.607727
A80: 3 | B80: 68.59999847 | C80: 18.5 | D80: 0.3500448763 | E80: 1.283900261 | F80: 1000.185974 | G80: 1002.385986 | H80: 1000.536011 | I80: 1000.620056
A81: 3 | B81: 69.83332825 | C81: 19.73333359 | D81: 0.3500448763 | E81: 1.283900261 | F81: 1000.198303 | G81: 1002.398315 | H81: 1000.54834 | I81: 1000.632385
A82: 3 | B82: 71.06666565 | C82: 20.96666718 | D82: 0.3500448763 | E82: 1.283900261 | F82: 1000.210632 | G82: 1002.410645 | H82: 1000.560669 | I82: 1000.644714
A83: 3 | B83: 72.30000305 | C83: 22.20000076 | D83: 0.3500448763 | E83: 1.283900261 | F83: 1000.222961 | G83: 1002.422974 | H83: 1000.572998 | I83: 1000.657043
A84: 3 | B84: 73.53333282 | C84: 23.43333244 | D84: 0.3500448763 | E84: 1.283900261 | F84: 1000.235291 | G84: 1002.435303 | H84: 1000.585327 | I84: 1000.669373
A85: 3 | B85: 74.7666626 | C85: 24.66666603 | D85: 0.3500448763 | E85: 1.283900261 | F85: 1000.24762 | G85: 1002.447632 | H85: 1000.597656 | I85: 1000.681763
A86: 3 | B86: 76 | C86: 25.89999962 | D86: 0.3500448763 | E86: 1.283900261 | F86: 1000.259949 | G86: 1002.459961 | H86: 1000.610046 | I86: 1000.694092
A87: 3 | B87: 77.23332977 | C87: 27.13333321 | D87: 0.3500448763 | E87: 1.283900261 | F87: 1000.272278 | G87: 1002.47229 | H87: 1000.622375 | I87: 1000.706421
A88: 3 | B88: 78.46666718 | C88: 28.36666679 | D88: 0.3500448763 | E88: 1.283900261 | F88: 1000.284668 | G88: 1002.484619 | H88: 1000.634705 | I88: 1000.71875
A89: 3 | B89: 79.69999695 | C89: 29.60000038 | D89: 0.3500448763 | E89: 1.283900261 | F89: 1000.296997 | G89: 1002.496948 | H89: 1000.647034 | I89: 1000.731079
A90: 3 | B90: 80.93333435 | C90: 30.83333397 | D90: 0.3500448763 | E90: 1.283900261 | F90: 1000.309326 | G90: 1002.509277 | H90: 1000.659363 | I90: 1000.743408
A91: 3 | B91: 82.16666412 | C91: 32.06666565 | D91: 0.3500448763 | E91: 1.283900261 | F91: 1000.321655 | G91: 1002.521667 | H91: 1000.671692 | I91: 1000.755737
A92: 3 | B92: 83.3999939 | C92: 33.29999924 | D92: 0.3500448763 | E92: 1.283900261 | F92: 1000.333984 | G92: 1002.533997 | H92: 1000.684021 | I92: 1000.768066
A93: 3 | B93: 84.6333313 | C93: 34.53333282 | D93: 0.3500448763 | E93: 1.283900261 | F93: 1000.346313 | G93: 1002.546326 | H93: 1000.69635 | I93: 1000.780396
A94: 3 | B94: 85.8666687 | C94: 35.76666641 | D94: 0.3500448763 | E94: 1.283900261 | F94: 1000.358643 | G94: 1002.558655 | H94: 1000.708679 | I94: 1000.792725
A95: 3 | B95: 87.09999847 | C95: 37 | D95: 0.3500448763 | E95: 1.283900261 | F95: 1000.370972 | G95: 1002.570984 | H95: 1000.721008 | I95: 1000.805054
A96: 4 | B96: 87.09999847 | C96: 0 | D96: 0.4426351786 | E96: 0.3281202912 | F96: 1000.370972 | G96: 1001.870972 | H96: 1000.813599 | I96: 1000.819092
A97: 4 | B97: 87.10333252 | C97: 0.003333333414 | D97: 0.4422076643 | E97: 0.3284783065 | F97: 1000.371033 | G97: 1001.871033 | H97: 1000.813232 | I97: 1000.818726
A98: 4 | B98: 87.10666656 | C98: 0.006666666828 | D98: 0.4417809844 | E98: 0.328836292 | F98: 1000.371033 | G98: 1001.871033 | H98: 1000.812805 | I98: 1000.818359
A99: 4 | B99: 87.11000061 | C99: 0.01000000071 | D99: 0.441355139 | E99: 0.3291943073 | F99: 1000.371094 | G99: 1001.871094 | H99: 1000.812439 | I99: 1000.817932
A100: 4 | B100: 87.11333466 | C100: 0.01333333366 | D100: 0.4409301281 | E100: 0.3295523226 | F100: 1000.371094 | G100: 1001.871094 | H100: 1000.812012 | I100: 1000.817566
A101: 4 | B101: 87.1166687 | C101: 0.01666666754 | D101: 0.4405059218 | E101: 0.3299103379 | F101: 1000.371155 | G101: 1001.871155 | H101: 1000.811646 | I101: 1000.8172
A102: 4 | B102: 87.11999512 | C102: 0.02000000142 | D102: 0.44008255 | E102: 0.330268383 | F102: 1000.371155 | G102: 1001.871155 | H102: 1000.811279 | I102: 1000.816833
A103: 4 | B103: 87.12332916 | C103: 0.02333333343 | D103: 0.4396600127 | E103: 0.3306263983 | F103: 1000.371216 | G103: 1001.871216 | H103: 1000.810852 | I103: 1000.816467
A104: 4 | B104: 87.12666321 | C104: 0.02666666731 | D104: 0.4392383099 | E104: 0.3309843838 | F104: 1000.371277 | G104: 1001.871277 | H104: 1000.810486 | I104: 1000.816101
A105: 4 | B105: 87.12999725 | C105: 0.03000000119 | D105: 0.4388174415 | E105: 0.3313423991 | F105: 1000.371277 | G105: 1001.871277 | H105: 1000.81012 | I105: 1000.815674
A106: 4 | B106: 87.1333313 | C106: 0.03333333507 | D106: 0.4383973777 | E106: 0.3317003846 | F106: 1000.371338 | G106: 1001.871338 | H106: 1000.809692 | I106: 1000.815308
A107: 4 | B107: 87.13666534 | C107: 0.03666666895 | D107: 0.4379781485 | E107: 0.3320583701 | F107: 1000.371338 | G107: 1001.871338 | H107: 1000.809326 | I107: 1000.814941
A108: 4 | B108: 87.13999939 | C108: 0.04000000283 | D108: 0.4375597239 | E108: 0.3324163854 | F108: 1000.371399 | G108: 1001.871399 | H108: 1000.80896 | I108: 1000.814575
A109: 4 | B109: 87.14333344 | C109: 0.04333333671 | D109: 0.4371421337 | E109: 0.3327743709 | F109: 1000.371399 | G109: 1001.871399 | H109: 1000.808594 | I109: 1000.814209
A110: 4 | B110: 87.14666748 | C110: 0.04666666687 | D110: 0.4367253482 | E110: 0.3331323266 | F110: 1000.37146 | G110: 1001.87146 | H110: 1000.808167 | I110: 1000.813843
A111: 4 | B111: 87.15000153 | C111: 0.05000000075 | D111: 0.4363093972 | E111: 0.3334902823 | F111: 1000.371521 | G111: 1001.871521 | H111: 1000.8078 | I111: 1000.813477
A112: 4 | B112: 87.15333557 | C112: 0.05333333462 | D112: 0.4358942509 | E112: 0.333848238 | F112: 1000.371521 | G112: 1001.871521 | H112: 1000.807434 | I112: 1000.81311
A113: 4 | B113: 87.15666199 | C113: 0.0566666685 | D113: 0.4354798794 | E113: 0.3342062235 | F113: 1000.371582 | G113: 1001.871582 | H113: 1000.807068 | I113: 1000.812744
A114: 4 | B114: 87.15999603 | C114: 0.06000000238 | D114: 0.4350663424 | E114: 0.3345641494 | F114: 1000.371582 | G114: 1001.871582 | H114: 1000.806641 | I114: 1000.812378
A115: 4 | B115: 87.16333008 | C115: 0.06333333254 | D115: 0.43465361 | E115: 0.3349220753 | F115: 1000.371643 | G115: 1001.871643 | H115: 1000.806274 | I115: 1000.812012
A116: 4 | B116: 87.16666412 | C116: 0.06666667014 | D116: 0.4342416525 | E116: 0.3352800012 | F116: 1000.371643 | G116: 1001.871643 | H116: 1000.805908 | I116: 1000.811646
A117: 4 | B117: 87.16999817 | C117: 0.07000000775 | D117: 0.4338305295 | E117: 0.3356379271 | F117: 1000.371704 | G117: 1001.871704 | H117: 1000.805542 | I117: 1000.811279
A118: 4 | B118: 87.17333221 | C118: 0.0733333379 | D118: 0.4334201813 | E118: 0.3359958529 | F118: 1000.371704 | G118: 1001.871704 | H118: 1000.805176 | I118: 1000.810913
A119: 4 | B119: 87.17666626 | C119: 0.07666666806 | D119: 0.4330106676 | E119: 0.336353749 | F119: 1000.371765 | G119: 1001.871765 | H119: 1000.804749 | I119: 1000.810547
A120: 4 | B120: 87.18000031 | C120: 0.08000000566 | D120: 0.4326019287 | E120: 0.3367116451 | F120: 1000.371826 | G120: 1001.871826 | H120: 1000.804382 | I120: 1000.810181
A121: 4 | B121: 87.18333435 | C121: 0.08333333582 | D121: 0.4321939945 | E121: 0.3370694816 | F121: 1000.371826 | G121: 1001.871826 | H121: 1000.804016 | I121: 1000.809814
A122: 4 | B122: 87.1866684 | C122: 0.08666667342 | D122: 0.431786865 | E122: 0.3374273181 | F122: 1000.371887 | G122: 1001.871887 | H122: 1000.80365 | I122: 1000.809448
A123: 4 | B123: 87.18999481 | C123: 0.09000000358 | D123: 0.4313805103 | E123: 0.3377851844 | F123: 1000.371887 | G123: 1001.871887 | H123: 1000.803284 | I123: 1000.809082
A124: 4 | B124: 87.19332886 | C124: 0.09333333373 | D124: 0.4309749603 | E124: 0.3381430209 | F124: 1000.371948 | G124: 1001.871948 | H124: 1000.802917 | I124: 1000.808716
A125: 4 | B125: 87.1966629 | C125: 0.09666667134 | D125: 0.430570215 | E125: 0.3385008276 | F125: 1000.371948 | G125: 1001.871948 | H125: 1000.802551 | I125: 1000.808411
A126: 4 | B126: 87.19999695 | C126: 0.1000000015 | D126: 0.4301662445 | E126: 0.3388586044 | F126: 1000.372009 | G126: 1001.872009 | H126: 1000.802185 | I126: 1000.808044
A127: 5 | B127: 87.19999695 | C127: 0 | D127: 0.4302121997 | E127: 0.3388178349 | F127: 1000.372009 | G127: 1001.872009 | H127: 1000.802246 | I127: 1000.808105
A128: 5 | B128: 88.86666107 | C128: 1.666666627 | D128: 0.4157096148 | E128: 0.3521267176 | F128: 1000.388672 | G128: 1001.888672 | H128: 1000.804382 | I128: 1000.81073
A129: 5 | B129: 90.53333282 | C129: 3.333333254 | D129: 0.4016246796 | E129: 0.3659849465 | F129: 1000.405334 | G129: 1001.905334 | H129: 1000.806946 | I129: 1000.813782
A130: 5 | B130: 92.19999695 | C130: 5 | D130: 0.3874035478 | E130: 0.3810127378 | F130: 1000.421997 | G130: 1001.921997 | H130: 1000.809387 | I130: 1000.816833
A131: 5 | B131: 93.86666107 | C131: 6.666666508 | D131: 0.3738558292 | E131: 0.3964051902 | F131: 1000.43866 | G131: 1001.93866 | H131: 1000.812561 | I131: 1000.820557
A132: 5 | B132: 95.53333282 | C132: 8.333333015 | D132: 0.3605045676 | E132: 0.4127192497 | F132: 1000.455322 | G132: 1001.955322 | H132: 1000.815857 | I132: 1000.824524
A133: 5 | B133: 97.19999695 | C133: 10 | D133: 0.3477760553 | E133: 0.4294513166 | F133: 1000.471985 | G133: 1001.971985 | H133: 1000.819763 | I133: 1000.829163
A134: 5 | B134: 98.86666107 | C134: 11.66666698 | D134: 0.3355466127 | E134: 0.4467351735 | F134: 1000.488647 | G134: 1001.988647 | H134: 1000.824219 | I134: 1000.834412
A135: 5 | B135: 100.5333328 | C135: 13.33333302 | D135: 0.3239546418 | E135: 0.4643342495 | F135: 1000.505371 | G135: 1002.005371 | H135: 1000.829285 | I135: 1000.840271
A136: 5 | B136: 102.1999969 | C136: 15 | D136: 0.3131090999 | E136: 0.4819906056 | F136: 1000.522034 | G136: 1002.022034 | H136: 1000.835144 | I136: 1000.846985
A137: 5 | B137: 103.8666611 | C137: 16.66666603 | D137: 0.3025164604 | E137: 0.500467658 | F137: 1000.538696 | G137: 1002.038696 | H137: 1000.841187 | I137: 1000.853943
A138: 5 | B138: 105.5333328 | C138: 18.33333397 | D138: 0.2932099104 | E138: 0.5178117752 | F138: 1000.555359 | G138: 1002.055359 | H138: 1000.848572 | I138: 1000.862244
A139: 5 | B139: 107.1999969 | C139: 20 | D139: 0.284450531 | E139: 0.5351808071 | F139: 1000.572021 | G139: 1002.072021 | H139: 1000.856445 | I139: 1000.871094
A140: 5 | B140: 108.8666611 | C140: 21.66666603 | D140: 0.2764309049 | E140: 0.5520550609 | F140: 1000.588684 | G140: 1002.088684 | H140: 1000.865112 | I140: 1000.880676
A141: 5 | B141: 110.5333328 | C141: 23.33333397 | D141: 0.2698522806 | E141: 0.5666511655 | F141: 1000.605347 | G141: 1002.105347 | H141: 1000.875183 | I141: 1000.891541
A142: 5 | B142: 112.1999969 | C142: 25 | D142: 0.2637518644 | E142: 0.5808410645 | F142: 1000.622009 | G142: 1002.122009 | H142: 1000.885742 | I142: 1000.902954
A143: 5 | B143: 113.8666611 | C143: 26.66666603 | D143: 0.2588905692 | E143: 0.5926305056 | F143: 1000.638672 | G143: 1002.138672 | H143: 1000.897583 | I143: 1000.915466
A144: 5 | B144: 115.5333328 | C144: 28.33333397 | D144: 0.2550167441 | E144: 0.6023488045 | F144: 1000.655334 | G144: 1002.155334 | H144: 1000.910339 | I144: 1000.928833
A145: 5 | B145: 117.1999969 | C145: 30 | D145: 0.2516923547 | E145: 0.6109287143 | F145: 1000.671997 | G145: 1002.171997 | H145: 1000.923706 | I145: 1000.942749
A146: 5 | B146: 118.8666611 | C146: 31.66666603 | D146: 0.2490951717 | E146: 0.6177919507 | F146: 1000.68866 | G146: 1002.18866 | H146: 1000.937744 | I146: 1000.957214
A147: 5 | B147: 120.5333252 | C147: 33.33333206 | D147: 0.2470661104 | E147: 0.6232548952 | F147: 1000.705322 | G147: 1002.205322 | H147: 1000.952393 | I147: 1000.972229
A148: 5 | B148: 122.1999969 | C148: 35 | D148: 0.2457073629 | E148: 0.6269638538 | F148: 1000.721985 | G148: 1002.221985 | H148: 1000.967712 | I148: 1000.987732
A149: 5 | B149: 123.8666687 | C149: 36.66666794 | D149: 0.2446033657 | E149: 0.630007863 | F149: 1000.738647 | G149: 1002.238647 | H149: 1000.983276 | I149: 1001.00354
A150: 5 | B150: 125.5333252 | C150: 38.33333206 | D150: 0.2431083918 | E150: 0.6341742873 | F150: 1000.755371 | G150: 1002.255371 | H150: 1000.998474 | I150: 1001.018982
A151: 5 | B151: 127.1999969 | C151: 40 | D151: 0.2418750525 | E151: 0.6376504302 | F151: 1000.772034 | G151: 1002.272034 | H151: 1001.013855 | I151: 1001.034607
A152: 5 | B152: 128.8666687 | C152: 41.66666794 | D152: 0.2398194522 | E152: 0.6435240507 | F152: 1000.788696 | G152: 1002.288696 | H152: 1001.028503 | I152: 1001.049622
A153: 5 | B153: 130.5333252 | C153: 43.33333206 | D153: 0.2398194522 | E153: 0.6435240507 | F153: 1000.805359 | G153: 1002.305359 | H153: 1001.045166 | I153: 1001.066284
A154: 5 | B154: 132.1999969 | C154: 45 | D154: 0.2398194522 | E154: 0.6435240507 | F154: 1000.822021 | G154: 1002.322021 | H154: 1001.061829 | I154: 1001.082947
A155: 5 | B155: 133.8666687 | C155: 46.66666794 | D155: 0.2398194522 | E155: 0.6435240507 | F155: 1000.838684 | G155: 1002.338684 | H155: 1001.078491 | I155: 1001.099609
A156: 5 | B156: 135.5333252 | C156: 48.33333206 | D156: 0.2398194522 | E156: 0.6435240507 | F156: 1000.855347 | G156: 1002.355347 | H156: 1001.095154 | I156: 1001.116272
A157: 5 | B157: 137.1999969 | C157: 50 | D157: 0.2398194522 | E157: 0.6435240507 | F157: 1000.872009 | G157: 1002.372009 | H157: 1001.111816 | I157: 1001.132935

Sheet Plot Data (hidden)
A2: 0 | B2: 999.5 | D2: 0 | E2: 999.6394653 | G2: 0 | H2: 999.7398071 | J2: 0 | K2: 1001
A3: 50 | B3: 1000 | D3: 50 | E3: 1000.139465 | G3: 50 | H3: 1000.239807 | J3: 50 | K3: 1001.5
A4: 50 | B4: 1000 | D4: 50 | G4: 50 | J4: 50
A5: 50.09999847 | B5: 1000.000977 | D5: 50 | E5: 1000.139465 | G5: 50 | H5: 1000.228027 | J5: 50 | K5: 1001.5
A6: 50.09999847 | B6: 1000.000977 | D6: 50.09999847 | E6: 1000.140442 | G6: 50.09999847 | H6: 1000.229004 | J6: 50.09999847 | K6: 1001.500977
A7: 87.09999847 | B7: 1000.370972 | D7: 50.09999847 | G7: 50.09999847 | J7: 50.09999847
A8: 87.09999847 | B8: 1002.570984 | D8: 50.09999847 | E8: 1000.320312 | G8: 50.09999847 | H8: 1000.351013
A9: 50.09999847 | B9: 1002.200989 | D9: 87.09999847 | E9: 1000.690308 | G9: 87.09999847 | H9: 1000.721008
A10: 50.09999847 | B10: 1000.000977 | D10: 87.09999847 | G10: 87.09999847
A11: 87.09999847 | B11: 1000.370972 | D11: 87.09999847 | E11: 1000.510437 | G11: 87.09999847 | H11: 1000.594727 | J11: 87.09999847 | K11: 1001.870972
A12: 87.09999847 | B12: 1000.370972 | D12: 87.19999695 | E12: 1000.511475 | G12: 87.19999695 | H12: 1000.595764 | J12: 87.19999695 | K12: 1001.872009
A13: 87.19999695 | B13: 1000.372009 | D13: 87.19999695 | G13: 87.19999695 | J13: 87.19999695
A14: 87.19999695 | B14: 1000.372009 | D14: 87.19999695 | E14: 1000.511475 | G14: 87.19999695 | H14: 1000.611816 | J14: 87.19999695 | K14: 1001.872009
A15: 137.1999969 | B15: 1000.872009 | D15: 137.1999969 | E15: 1001.011475 | G15: 137.1999969 | H15: 1001.111816 | J15: 137.1999969 | K15: 1002.372009
D16: 137.1999969 | G16: 137.1999969 | J16: 137.1999969

Sheet Temp (hidden)
A1: X | B1: Y | C1: V | D1: STA | E1: E | F1: WL | G1: X | H1: Y | I1: V | J1: STA | K1: E | L1: WL
A2: 0 | B2: 0.2398194522 | C2: 0.6435240507 | D2: 0 | E2: 999.7609253 | F2: 999.7398071 | G2: 0 | H2: 0 | I2: 0 | J2: 0 | K2: 0 | L2: 999.5
A3: 1.666666627 | B3: 0.2398194522 | C3: 0.6435240507 | D3: 1.666666627 | E3: 999.7775879 | F3: 999.7564697 | G3: 0 | H3: 0 | I3: 0 | J3: 0 | K3: 0 | L3: 999.5
A4: 3.333333254 | B4: 0.2398194522 | C4: 0.6435240507 | D4: 3.333333254 | E4: 999.7942505 | F4: 999.7731323 | G4: 0 | H4: 0 | I4: 0 | J4: 0 | K4: 0 | L4: 999.5
A5: 5 | B5: 0.2398194522 | C5: 0.6435240507 | D5: 5 | E5: 999.8109131 | F5: 999.7897949 | G5: 0 | H5: 0 | I5: 0 | J5: 0 | K5: 0 | L5: 999.5
A6: 6.666666508 | B6: 0.2398194522 | C6: 0.6435240507 | D6: 6.666666508 | E6: 999.8275757 | F6: 999.8064575 | G6: 0 | H6: 0 | I6: 0 | J6: 0 | K6: 0 | L6: 999.5
A7: 8.333333015 | B7: 0.2398194522 | C7: 0.6435240507 | D7: 8.333333015 | E7: 999.8442993 | F7: 999.8231812 | G7: 0 | H7: 0 | I7: 0 | J7: 0 | K7: 0 | L7: 999.5
A8: 10 | B8: 0.2398194522 | C8: 0.6435240507 | D8: 10 | E8: 999.8609619 | F8: 999.8398438 | G8: 0 | H8: 0 | I8: 0 | J8: 0 | K8: 0 | L8: 999.5
A9: 11.66666698 | B9: 0.2398194522 | C9: 0.6435240507 | D9: 11.66666698 | E9: 999.8776245 | F9: 999.8565063 | G9: 0 | H9: 0 | I9: 0 | J9: 0 | K9: 0 | L9: 999.5
A10: 13.33333302 | B10: 0.2398194522 | C10: 0.6435240507 | D10: 13.33333302 | E10: 999.8942871 | F10: 999.8731689 | G10: 0 | H10: 0 | I10: 0 | J10: 0 | K10: 0 | L10: 999.5
A11: 15 | B11: 0.2398194522 | C11: 0.6435240507 | D11: 15 | E11: 999.9109497 | F11: 999.8898315 | G11: 0 | H11: 0 | I11: 0 | J11: 0 | K11: 0 | L11: 999.5
A12: 16.66666603 | B12: 0.2398194522 | C12: 0.6435240507 | D12: 16.66666603 | E12: 999.9276123 | F12: 999.9064941 | G12: 0 | H12: 0 | I12: 0 | J12: 0 | K12: 0 | L12: 999.5
A13: 18.33333397 | B13: 0.2398194522 | C13: 0.6435240507 | D13: 18.33333397 | E13: 999.9442749 | F13: 999.9231567 | G13: 0 | H13: 0 | I13: 0 | J13: 0 | K13: 0 | L13: 999.5
A14: 20 | B14: 0.2398194522 | C14: 0.6435240507 | D14: 20 | E14: 999.9609375 | F14: 999.9398193 | G14: 0 | H14: 0 | I14: 0 | J14: 0 | K14: 0 | L14: 999.5
A15: 21.66666603 | B15: 0.2398194522 | C15: 0.6435240507 | D15: 21.66666603 | E15: 999.9776001 | F15: 999.9564819 | G15: 0 | H15: 0 | I15: 0 | J15: 0 | K15: 0 | L15: 999.5
A16: 23.33333397 | B16: 0.2398194522 | C16: 0.6435240507 | D16: 23.33333397 | E16: 999.9942627 | F16: 999.9731445 | G16: 0 | H16: 0 | I16: 0 | J16: 0 | K16: 0 | L16: 999.5
A17: 25 | B17: 0.2398194522 | C17: 0.6435240507 | D17: 25 | E17: 1000.010925 | F17: 999.9898071 | G17: 0 | H17: 0 | I17: 0 | J17: 0 | K17: 0 | L17: 999.5
A18: 26.66666603 | B18: 0.2398194522 | C18: 0.6435240507 | D18: 26.66666603 | E18: 1000.027588 | F18: 1000.00647 | G18: 0 | H18: 0 | I18: 0 | J18: 0 | K18: 0 | L18: 999.5
A19: 28.33333397 | B19: 0.2398194522 | C19: 0.6435240507 | D19: 28.33333397 | E19: 1000.04425 | F19: 1000.023132 | G19: 0 | H19: 0 | I19: 0 | J19: 0 | K19: 0 | L19: 999.5
A20: 30 | B20: 0.2398194522 | C20: 0.6435240507 | D20: 30 | E20: 1000.060913 | F20: 1000.039795 | G20: 0 | H20: 0 | I20: 0 | J20: 0 | K20: 0 | L20: 999.5
A21: 31.66666603 | B21: 0.2398194522 | C21: 0.6435240507 | D21: 31.66666603 | E21: 1000.077576 | F21: 1000.056458 | G21: 0 | H21: 0 | I21: 0 | J21: 0 | K21: 0 | L21: 999.5
A22: 33.33333206 | B22: 0.2398194522 | C22: 0.6435240507 | D22: 33.33333206 | E22: 1000.094299 | F22: 1000.073181 | G22: 0 | H22: 0 | I22: 0 | J22: 0 | K22: 0 | L22: 999.5
A23: 35 | B23: 0.2398194522 | C23: 0.6435240507 | D23: 35 | E23: 1000.110962 | F23: 1000.089844 | G23: 0 | H23: 0 | I23: 0 | J23: 0 | K23: 0 | L23: 999.5
A24: 36.66666794 | B24: 0.2398194522 | C24: 0.6435240507 | D24: 36.66666794 | E24: 1000.127625 | F24: 1000.106506 | G24: 0 | H24: 0 | I24: 0 | J24: 0 | K24: 0 | L24: 999.5
A25: 38.33333206 | B25: 0.2398194522 | C25: 0.6435240507 | D25: 38.33333206 | E25: 1000.144287 | F25: 1000.123169 | G25: 0 | H25: 0 | I25: 0 | J25: 0 | K25: 0 | L25: 999.5
A26: 40 | B26: 0.2398194522 | C26: 0.6435240507 | D26: 40 | E26: 1000.16095 | F26: 1000.139832 | G26: 0 | H26: 0 | I26: 0 | J26: 0 | K26: 0 | L26: 999.5
A27: 41.66666794 | B27: 0.2398194522 | C27: 0.6435240507 | D27: 41.66666794 | E27: 1000.177612 | F27: 1000.156494 | G27: 0 | H27: 0 | I27: 0 | J27: 0 | K27: 0 | L27: 999.5
A28: 43.33333206 | B28: 0.2398194522 | C28: 0.6435240507 | D28: 43.33333206 | E28: 1000.194275 | F28: 1000.173157 | G28: 0 | H28: 0 | I28: 0 | J28: 0 | K28: 0 | L28: 999.5
A29: 45 | B29: 0.2398194522 | C29: 0.6435240507 | D29: 45 | E29: 1000.210938 | F29: 1000.189819 | G29: 0 | H29: 0 | I29: 0 | J29: 0 | K29: 0 | L29: 999.5
A30: 46.66666794 | B30: 0.2398194522 | C30: 0.6435240507 | D30: 46.66666794 | E30: 1000.2276 | F30: 1000.206482 | G30: 0 | H30: 0 | I30: 0 | J30: 0 | K30: 0 | L30: 999.5
A31: 48.33333206 | B31: 0.2398194522 | C31: 0.6435240507 | D31: 48.33333206 | E31: 1000.244263 | F31: 1000.223145 | G31: 0 | H31: 0 | I31: 0 | J31: 0 | K31: 0 | L31: 999.5
A32: 50 | B32: 0.2398194522 | C32: 0.6435240507 | D32: 50 | E32: 1000.260925 | F32: 1000.239807 | G32: 0 | H32: 0 | I32: 0 | J32: 0 | K32: 0 | L32: 999.5
A33: 0 | B33: 0.2399853915 | C33: 0.6430461407 | D33: 50 | E33: 1000.261047 | F33: 1000.23999 | G33: 0 | H33: 0 | I33: 0 | J33: 50 | K33: 0 | L33: 1000
A34: 0.003333333414 | B34: 0.2396111488 | C34: 0.6441249251 | D34: 50.00333405 | E34: 1000.260803 | F34: 1000.239624 | G34: 0 | H34: 0 | I34: 0 | J34: 50 | K34: 0 | L34: 1000
A35: 0.006666666828 | B35: 0.2392486036 | C35: 0.645173192 | D35: 50.00666809 | E35: 1000.260559 | F35: 1000.239319 | G35: 0 | H35: 0 | I35: 0 | J35: 50 | K35: 0 | L35: 1000
A36: 0.009999999776 | B36: 0.2388973832 | C36: 0.6461917758 | D36: 50.00999832 | E36: 1000.260315 | F36: 1000.239014 | G36: 0 | H36: 0 | I36: 0 | J36: 50 | K36: 0 | L36: 1000
A37: 0.01333333366 | B37: 0.238557145 | C37: 0.6471813917 | D37: 50.01333237 | E37: 1000.260071 | F37: 1000.238708 | G37: 0 | H37: 0 | I37: 0 | J37: 50 | K37: 0 | L37: 1000
A38: 0.01666666754 | B38: 0.2382275462 | C38: 0.648142755 | D38: 50.01666641 | E38: 1000.259827 | F38: 1000.238403 | G38: 0 | H38: 0 | I38: 0 | J38: 50 | K38: 0 | L38: 1000
A39: 0.02000000142 | B39: 0.2379082441 | C39: 0.6490766406 | D39: 50.02000046 | E39: 1000.259583 | F39: 1000.238098 | G39: 0 | H39: 0 | I39: 0 | J39: 50 | K39: 0 | L39: 1000
A40: 0.0233333353 | B40: 0.2375989109 | C40: 0.6499837637 | D40: 50.0233345 | E40: 1000.259338 | F40: 1000.237854 | G40: 0 | H40: 0 | I40: 0 | J40: 50 | K40: 0 | L40: 1000
A41: 0.02666666918 | B41: 0.2372992337 | C41: 0.6508648396 | D41: 50.02666855 | E41: 1000.259155 | F41: 1000.237549 | G41: 0 | H41: 0 | I41: 0 | J41: 50 | K41: 0 | L41: 1000
A42: 0.03000000305 | B42: 0.2370089293 | C42: 0.6517205238 | D42: 50.02999878 | E42: 1000.258972 | F42: 1000.237305 | G42: 0 | H42: 0 | I42: 0 | J42: 50 | K42: 0 | L42: 1000
A43: 0.03333333507 | B43: 0.2367276996 | C43: 0.6525514126 | D43: 50.03333282 | E43: 1000.258789 | F43: 1000.237061 | G43: 0 | H43: 0 | I43: 0 | J43: 50 | K43: 0 | L43: 1000
A44: 0.03666666895 | B44: 0.2364552617 | C44: 0.6533583403 | D44: 50.03666687 | E44: 1000.258606 | F44: 1000.236816 | G44: 0 | H44: 0 | I44: 0 | J44: 50 | K44: 0 | L44: 1000
A45: 0.04000000283 | B45: 0.2361913323 | C45: 0.6541417837 | D45: 50.04000092 | E45: 1000.258423 | F45: 1000.236572 | G45: 0 | H45: 0 | I45: 0 | J45: 50 | K45: 0 | L45: 1000
A46: 0.04333333671 | B46: 0.2359356582 | C46: 0.654902339 | D46: 50.04333496 | E46: 1000.25824 | F46: 1000.236389 | G46: 0 | H46: 0 | I46: 0 | J46: 50 | K46: 0 | L46: 1000
A47: 0.04666667059 | B47: 0.235440284 | C47: 0.6563807726 | D47: 50.04666519 | E47: 1000.257874 | F47: 1000.235901 | G47: 0 | H47: 0 | I47: 0 | J47: 50 | K47: 0 | L47: 1000
A48: 0.05000000447 | B48: 0.2349758744 | C48: 0.6577724814 | D48: 50.04999924 | E48: 1000.257507 | F48: 1000.235474 | G48: 0 | H48: 0 | I48: 0 | J48: 50 | K48: 0 | L48: 1000
A49: 0.05333333835 | B49: 0.2345404923 | C49: 0.6590822339 | D49: 50.05333328 | E49: 1000.257202 | F49: 1000.235046 | G49: 0 | H49: 0 | I49: 0 | J49: 50 | K49: 0 | L49: 1000
A50: 0.05666667223 | B50: 0.2341323197 | C50: 0.6603145003 | D50: 50.05666733 | E50: 1000.256897 | F50: 1000.23468 | G50: 0 | H50: 0 | I50: 0 | J50: 50 | K50: 0 | L50: 1000
A51: 0.06000000611 | B51: 0.2337496579 | C51: 0.6614737511 | D51: 50.06000137 | E51: 1000.256653 | F51: 1000.234314 | G51: 0 | H51: 0 | I51: 0 | J51: 50 | K51: 0 | L51: 1000
A52: 0.06333333999 | B52: 0.2333909124 | C52: 0.6625640392 | D52: 50.0633316 | E52: 1000.256409 | F52: 1000.234009 | G52: 0 | H52: 0 | I52: 0 | J52: 50 | K52: 0 | L52: 1000
A53: 0.06666667014 | B53: 0.2330545783 | C53: 0.6635892391 | D53: 50.06666565 | E53: 1000.256165 | F53: 1000.233704 | G53: 0 | H53: 0 | I53: 0 | J53: 50 | K53: 0 | L53: 1000
A54: 0.0700000003 | B54: 0.2327392697 | C54: 0.6645530462 | D54: 50.06999969 | E54: 1000.25592 | F54: 1000.233398 | G54: 0 | H54: 0 | I54: 0 | J54: 50 | K54: 0 | L54: 1000
A55: 0.07333333045 | B55: 0.2324436754 | C55: 0.6654590368 | D55: 50.07333374 | E55: 1000.255737 | F55: 1000.233154 | G55: 0 | H55: 0 | I55: 0 | J55: 50 | K55: 0 | L55: 1000
A56: 0.07666666061 | B56: 0.2321665585 | C56: 0.6663104296 | D56: 50.07666779 | E56: 1000.255554 | F56: 1000.23291 | G56: 0 | H56: 0 | I56: 0 | J56: 50 | K56: 0 | L56: 1000
A57: 0.07999999076 | B57: 0.2319067568 | C57: 0.6671105027 | D57: 50.08000183 | E57: 1000.255371 | F57: 1000.232666 | G57: 0 | H57: 0 | I57: 0 | J57: 50 | K57: 0 | L57: 1000
A58: 0.08333332092 | B58: 0.2314196229 | C58: 0.6686155796 | D58: 50.08333206 | E58: 1000.255005 | F58: 1000.232239 | G58: 0 | H58: 0 | I58: 0 | J58: 50 | K58: 0 | L58: 1000
A59: 0.08666665107 | B59: 0.2309933901 | C59: 0.6699376702 | D59: 50.08666611 | E59: 1000.2547 | F59: 1000.231812 | G59: 0 | H59: 0 | I59: 0 | J59: 50 | K59: 0 | L59: 1000
A60: 0.08999998122 | B60: 0.2306204289 | C60: 0.6710985899 | D60: 50.09000015 | E60: 1000.254456 | F60: 1000.231506 | G60: 0 | H60: 0 | I60: 0 | J60: 50 | K60: 0 | L60: 1000
A61: 0.09333331138 | B61: 0.2302940786 | C61: 0.6721174717 | D61: 50.0933342 | E61: 1000.254211 | F61: 1000.231201 | G61: 0 | H61: 0 | I61: 0 | J61: 50 | K61: 0 | L61: 1000
A62: 0.09666664153 | B62: 0.2300085276 | C62: 0.6730113626 | D62: 50.09666824 | E62: 1000.254028 | F62: 1000.230957 | G62: 0 | H62: 0 | I62: 0 | J62: 50 | K62: 0 | L62: 1000
A63: 0.09999997169 | B63: 0.2280097008 | C63: 0.6793316603 | D63: 50.09999847 | E63: 1000.252502 | F63: 1000.229004 | G63: 0 | H63: 0 | I63: 0 | J63: 50 | K63: 0 | L63: 1000
A64: 0 | B64: 0.3193610907 | C64: 1.46646893 | D64: 50.09999847 | E64: 1000.429993 | F64: 1000.320312 | G64: 0 | H64: 0 | I64: 0 | J64: 50.09999847 | K64: 0 | L64: 1000.000977
A65: 1.233333349 | B65: 0.3438122272 | C65: 1.317718506 | D65: 51.33333206 | E65: 1000.445679 | F65: 1000.357117 | G65: 0 | H65: 0 | I65: 0 | J65: 50.09999847 | K65: 0 | L65: 1000.000977
A66: 2.466666698 | B66: 0.3465389907 | C66: 1.30273664 | D66: 52.56666565 | E66: 1000.45874 | F66: 1000.372192 | G66: 0 | H66: 0 | I66: 0 | J66: 50.09999847 | K66: 0 | L66: 1000.000977
A67: 3.700000048 | B67: 0.3478536904 | C67: 1.295617819 | D67: 53.79999924 | E67: 1000.471436 | F67: 1000.385803 | G67: 0 | H67: 0 | I67: 0 | J67: 50.09999847 | K67: 0 | L67: 1000.000977
A68: 4.933333397 | B68: 0.3500448763 | C68: 1.283900261 | D68: 55.03333282 | E68: 1000.484375 | F68: 1000.40033 | G68: 0 | H68: 0 | I68: 0 | J68: 50.09999847 | K68: 0 | L68: 1000.000977
A69: 6.166666985 | B69: 0.3500448763 | C69: 1.283900261 | D69: 56.26666641 | E69: 1000.496765 | F69: 1000.412659 | G69: 0 | H69: 0 | I69: 0 | J69: 50.09999847 | K69: 0 | L69: 1000.000977
A70: 7.400000572 | B70: 0.3500448763 | C70: 1.283900261 | D70: 57.5 | E70: 1000.509094 | F70: 1000.425049 | G70: 0 | H70: 0 | I70: 0 | J70: 50.09999847 | K70: 0 | L70: 1000.000977
A71: 8.63333416 | B71: 0.3500448763 | C71: 1.283900261 | D71: 58.73333359 | E71: 1000.521423 | F71: 1000.437378 | G71: 0 | H71: 0 | I71: 0 | J71: 50.09999847 | K71: 0 | L71: 1000.000977
A72: 9.866667747 | B72: 0.3500448763 | C72: 1.283900261 | D72: 59.96666718 | E72: 1000.533752 | F72: 1000.449707 | G72: 0 | H72: 0 | I72: 0 | J72: 50.09999847 | K72: 0 | L72: 1000.000977
A73: 11.10000134 | B73: 0.3500448763 | C73: 1.283900261 | D73: 61.20000076 | E73: 1000.546082 | F73: 1000.462036 | G73: 0 | H73: 0 | I73: 0 | J73: 50.09999847 | K73: 0 | L73: 1000.000977
A74: 12.33333492 | B74: 0.3500448763 | C74: 1.283900261 | D74: 62.43333435 | E74: 1000.558411 | F74: 1000.474365 | G74: 0 | H74: 0 | I74: 0 | J74: 50.09999847 | K74: 0 | L74: 1000.000977
A75: 13.56666851 | B75: 0.3500448763 | C75: 1.283900261 | D75: 63.66666794 | E75: 1000.57074 | F75: 1000.486694 | G75: 0 | H75: 0 | I75: 0 | J75: 50.09999847 | K75: 0 | L75: 1000.000977
A76: 14.8000021 | B76: 0.3500448763 | C76: 1.283900261 | D76: 64.90000153 | E76: 1000.583069 | F76: 1000.499023 | G76: 0 | H76: 0 | I76: 0 | J76: 50.09999847 | K76: 0 | L76: 1000.000977
A77: 16.03333473 | B77: 0.3500448763 | C77: 1.283900261 | D77: 66.1333313 | E77: 1000.595398 | F77: 1000.511353 | G77: 0 | H77: 0 | I77: 0 | J77: 50.09999847 | K77: 0 | L77: 1000.000977
A78: 17.26666832 | B78: 0.3500448763 | C78: 1.283900261 | D78: 67.3666687 | E78: 1000.607727 | F78: 1000.523682 | G78: 0 | H78: 0 | I78: 0 | J78: 50.09999847 | K78: 0 | L78: 1000.000977
A79: 18.50000191 | B79: 0.3500448763 | C79: 1.283900261 | D79: 68.59999847 | E79: 1000.620056 | F79: 1000.536011 | G79: 0 | H79: 0 | I79: 0 | J79: 50.09999847 | K79: 0 | L79: 1000.000977
A80: 19.73333549 | B80: 0.3500448763 | C80: 1.283900261 | D80: 69.83333588 | E80: 1000.632385 | F80: 1000.54834 | G80: 0 | H80: 0 | I80: 0 | J80: 50.09999847 | K80: 0 | L80: 1000.000977
A81: 20.96666908 | B81: 0.3500448763 | C81: 1.283900261 | D81: 71.06666565 | E81: 1000.644714 | F81: 1000.560669 | G81: 0 | H81: 0 | I81: 0 | J81: 50.09999847 | K81: 0 | L81: 1000.000977
A82: 22.20000267 | B82: 0.3500448763 | C82: 1.283900261 | D82: 72.30000305 | E82: 1000.657043 | F82: 1000.572998 | G82: 0 | H82: 0 | I82: 0 | J82: 50.09999847 | K82: 0 | L82: 1000.000977
A83: 23.43333626 | B83: 0.3500448763 | C83: 1.283900261 | D83: 73.53333282 | E83: 1000.669373 | F83: 1000.585327 | G83: 0 | H83: 0 | I83: 0 | J83: 50.09999847 | K83: 0 | L83: 1000.000977
A84: 24.66666985 | B84: 0.3500448763 | C84: 1.283900261 | D84: 74.76667023 | E84: 1000.681763 | F84: 1000.597656 | G84: 0 | H84: 0 | I84: 0 | J84: 50.09999847 | K84: 0 | L84: 1000.000977
A85: 25.90000343 | B85: 0.3500448763 | C85: 1.283900261 | D85: 76 | E85: 1000.694092 | F85: 1000.610046 | G85: 0 | H85: 0 | I85: 0 | J85: 50.09999847 | K85: 0 | L85: 1000.000977
A86: 27.13333702 | B86: 0.3500448763 | C86: 1.283900261 | D86: 77.2333374 | E86: 1000.706421 | F86: 1000.622375 | G86: 0 | H86: 0 | I86: 0 | J86: 50.09999847 | K86: 0 | L86: 1000.000977
A87: 28.36667061 | B87: 0.3500448763 | C87: 1.283900261 | D87: 78.46666718 | E87: 1000.71875 | F87: 1000.634705 | G87: 0 | H87: 0 | I87: 0 | J87: 50.09999847 | K87: 0 | L87: 1000.000977
A88: 29.6000042 | B88: 0.3500448763 | C88: 1.283900261 | D88: 79.70000458 | E88: 1000.731079 | F88: 1000.647034 | G88: 0 | H88: 0 | I88: 0 | J88: 50.09999847 | K88: 0 | L88: 1000.000977
A89: 30.83333778 | B89: 0.3500448763 | C89: 1.283900261 | D89: 80.93333435 | E89: 1000.743408 | F89: 1000.659363 | G89: 0 | H89: 0 | I89: 0 | J89: 50.09999847 | K89: 0 | L89: 1000.000977
A90: 32.06666946 | B90: 0.3500448763 | C90: 1.283900261 | D90: 82.16667175 | E90: 1000.755737 | F90: 1000.671692 | G90: 0 | H90: 0 | I90: 0 | J90: 50.09999847 | K90: 0 | L90: 1000.000977
A91: 33.30000305 | B91: 0.3500448763 | C91: 1.283900261 | D91: 83.40000153 | E91: 1000.768066 | F91: 1000.684021 | G91: 0 | H91: 0 | I91: 0 | J91: 50.09999847 | K91: 0 | L91: 1000.000977
A92: 34.53333664 | B92: 0.3500448763 | C92: 1.283900261 | D92: 84.6333313 | E92: 1000.780396 | F92: 1000.69635 | G92: 0 | H92: 0 | I92: 0 | J92: 50.09999847 | K92: 0 | L92: 1000.000977
A93: 35.76667023 | B93: 0.3500448763 | C93: 1.283900261 | D93: 85.8666687 | E93: 1000.792725 | F93: 1000.708679 | G93: 0 | H93: 0 | I93: 0 | J93: 50.09999847 | K93: 0 | L93: 1000.000977
A94: 37.00000381 | B94: 0.3500448763 | C94: 1.283900261 | D94: 87.1000061 | E94: 1000.805054 | F94: 1000.721008 | G94: 0 | H94: 0 | I94: 0 | J94: 50.09999847 | K94: 0 | L94: 1000.000977
A95: 0 | B95: 0.4426351786 | C95: 0.3281202912 | D95: 87.09999847 | E95: 1000.819092 | F95: 1000.813599 | G95: 0 | H95: 0 | I95: 0 | J95: 87.09999847 | K95: 0 | L95: 1000.370972
A96: 0.003333333414 | B96: 0.4422076643 | C96: 0.3284783065 | D96: 87.10333252 | E96: 1000.818726 | F96: 1000.813232 | G96: 0 | H96: 0 | I96: 0 | J96: 87.09999847 | K96: 0 | L96: 1000.370972
A97: 0.006666666828 | B97: 0.4417809844 | C97: 0.328836292 | D97: 87.10666656 | E97: 1000.818359 | F97: 1000.812805 | G97: 0 | H97: 0 | I97: 0 | J97: 87.09999847 | K97: 0 | L97: 1000.370972
A98: 0.009999999776 | B98: 0.441355139 | C98: 0.3291943073 | D98: 87.11000061 | E98: 1000.817932 | F98: 1000.812439 | G98: 0 | H98: 0 | I98: 0 | J98: 87.09999847 | K98: 0 | L98: 1000.370972
A99: 0.01333333366 | B99: 0.4409301281 | C99: 0.3295523226 | D99: 87.11333466 | E99: 1000.817566 | F99: 1000.812012 | G99: 0 | H99: 0 | I99: 0 | J99: 87.09999847 | K99: 0 | L99: 1000.370972
A100: 0.01666666754 | B100: 0.4405059218 | C100: 0.3299103379 | D100: 87.1166687 | E100: 1000.8172 | F100: 1000.811646 | G100: 0 | H100: 0 | I100: 0 | J100: 87.09999847 | K100: 0 | L100: 1000.370972
A101: 0.02000000142 | B101: 0.44008255 | C101: 0.330268383 | D101: 87.11999512 | E101: 1000.816833 | F101: 1000.811279 | G101: 0 | H101: 0 | I101: 0 | J101: 87.09999847 | K101: 0 | L101: 1000.370972
A102: 0.0233333353 | B102: 0.4396600127 | C102: 0.3306263983 | D102: 87.12332916 | E102: 1000.816467 | F102: 1000.810852 | G102: 0 | H102: 0 | I102: 0 | J102: 87.09999847 | K102: 0 | L102: 1000.370972
A103: 0.02666666918 | B103: 0.4392383099 | C103: 0.3309843838 | D103: 87.12666321 | E103: 1000.816101 | F103: 1000.810486 | G103: 0 | H103: 0 | I103: 0 | J103: 87.09999847 | K103: 0 | L103: 1000.370972
A104: 0.03000000305 | B104: 0.4388174415 | C104: 0.3313423991 | D104: 87.12999725 | E104: 1000.815674 | F104: 1000.81012 | G104: 0 | H104: 0 | I104: 0 | J104: 87.09999847 | K104: 0 | L104: 1000.370972
A105: 0.03333333507 | B105: 0.4383973777 | C105: 0.3317003846 | D105: 87.1333313 | E105: 1000.815308 | F105: 1000.809692 | G105: 0 | H105: 0 | I105: 0 | J105: 87.09999847 | K105: 0 | L105: 1000.370972
A106: 0.03666666895 | B106: 0.4379781485 | C106: 0.3320583701 | D106: 87.13666534 | E106: 1000.814941 | F106: 1000.809326 | G106: 0 | H106: 0 | I106: 0 | J106: 87.09999847 | K106: 0 | L106: 1000.370972
A107: 0.04000000283 | B107: 0.4375597239 | C107: 0.3324163854 | D107: 87.13999939 | E107: 1000.814575 | F107: 1000.80896 | G107: 0 | H107: 0 | I107: 0 | J107: 87.09999847 | K107: 0 | L107: 1000.370972
A108: 0.04333333671 | B108: 0.4371421337 | C108: 0.3327743709 | D108: 87.14333344 | E108: 1000.814209 | F108: 1000.808594 | G108: 0 | H108: 0 | I108: 0 | J108: 87.09999847 | K108: 0 | L108: 1000.370972
A109: 0.04666667059 | B109: 0.4367253482 | C109: 0.3331323266 | D109: 87.14666748 | E109: 1000.813843 | F109: 1000.808167 | G109: 0 | H109: 0 | I109: 0 | J109: 87.09999847 | K109: 0 | L109: 1000.370972
A110: 0.05000000447 | B110: 0.4363093972 | C110: 0.3334902823 | D110: 87.15000153 | E110: 1000.813477 | F110: 1000.8078 | G110: 0 | H110: 0 | I110: 0 | J110: 87.09999847 | K110: 0 | L110: 1000.370972
A111: 0.05333333835 | B111: 0.4358942509 | C111: 0.333848238 | D111: 87.15333557 | E111: 1000.81311 | F111: 1000.807434 | G111: 0 | H111: 0 | I111: 0 | J111: 87.09999847 | K111: 0 | L111: 1000.370972
A112: 0.05666667223 | B112: 0.4354798794 | C112: 0.3342062235 | D112: 87.15666199 | E112: 1000.812744 | F112: 1000.807068 | G112: 0 | H112: 0 | I112: 0 | J112: 87.09999847 | K112: 0 | L112: 1000.370972
A113: 0.06000000611 | B113: 0.4350663424 | C113: 0.3345641494 | D113: 87.15999603 | E113: 1000.812378 | F113: 1000.806641 | G113: 0 | H113: 0 | I113: 0 | J113: 87.09999847 | K113: 0 | L113: 1000.370972
A114: 0.06333333999 | B114: 0.43465361 | C114: 0.3349220753 | D114: 87.16333008 | E114: 1000.812012 | F114: 1000.806274 | G114: 0 | H114: 0 | I114: 0 | J114: 87.09999847 | K114: 0 | L114: 1000.370972
A115: 0.06666667014 | B115: 0.4342416525 | C115: 0.3352800012 | D115: 87.16666412 | E115: 1000.811646 | F115: 1000.805908 | G115: 0 | H115: 0 | I115: 0 | J115: 87.09999847 | K115: 0 | L115: 1000.370972
A116: 0.0700000003 | B116: 0.4338305295 | C116: 0.3356379271 | D116: 87.16999817 | E116: 1000.811279 | F116: 1000.805542 | G116: 0 | H116: 0 | I116: 0 | J116: 87.09999847 | K116: 0 | L116: 1000.370972
A117: 0.07333333045 | B117: 0.4334201813 | C117: 0.3359958529 | D117: 87.17333221 | E117: 1000.810913 | F117: 1000.805176 | G117: 0 | H117: 0 | I117: 0 | J117: 87.09999847 | K117: 0 | L117: 1000.370972
A118: 0.07666666061 | B118: 0.4330106676 | C118: 0.336353749 | D118: 87.17666626 | E118: 1000.810547 | F118: 1000.804749 | G118: 0 | H118: 0 | I118: 0 | J118: 87.09999847 | K118: 0 | L118: 1000.370972
A119: 0.07999999076 | B119: 0.4326019287 | C119: 0.3367116451 | D119: 87.18000031 | E119: 1000.810181 | F119: 1000.804382 | G119: 0 | H119: 0 | I119: 0 | J119: 87.09999847 | K119: 0 | L119: 1000.370972
A120: 0.08333332092 | B120: 0.4321939945 | C120: 0.3370694816 | D120: 87.18333435 | E120: 1000.809814 | F120: 1000.804016 | G120: 0 | H120: 0 | I120: 0 | J120: 87.09999847 | K120: 0 | L120: 1000.370972
A121: 0.08666665107 | B121: 0.431786865 | C121: 0.3374273181 | D121: 87.1866684 | E121: 1000.809448 | F121: 1000.80365 | G121: 0 | H121: 0 | I121: 0 | J121: 87.09999847 | K121: 0 | L121: 1000.370972
A122: 0.08999998122 | B122: 0.4313805103 | C122: 0.3377851844 | D122: 87.18999481 | E122: 1000.809082 | F122: 1000.803284 | G122: 0 | H122: 0 | I122: 0 | J122: 87.09999847 | K122: 0 | L122: 1000.370972
A123: 0.09333331138 | B123: 0.4309749603 | C123: 0.3381430209 | D123: 87.19332886 | E123: 1000.808716 | F123: 1000.802917 | G123: 0 | H123: 0 | I123: 0 | J123: 87.09999847 | K123: 0 | L123: 1000.370972
A124: 0.09666664153 | B124: 0.430570215 | C124: 0.3385008276 | D124: 87.1966629 | E124: 1000.808411 | F124: 1000.802551 | G124: 0 | H124: 0 | I124: 0 | J124: 87.09999847 | K124: 0 | L124: 1000.370972
A125: 0.09999997169 | B125: 0.4301662445 | C125: 0.3388586044 | D125: 87.19999695 | E125: 1000.808044 | F125: 1000.802185 | G125: 0 | H125: 0 | I125: 0 | J125: 87.09999847 | K125: 0 | L125: 1000.370972
A126: 0 | B126: 0.4302121997 | C126: 0.3388178349 | D126: 87.19999695 | E126: 1000.808105 | F126: 1000.802246 | G126: 0 | H126: 0 | I126: 0 | J126: 87.19999695 | K126: 0 | L126: 1000.372009
A127: 1.666666627 | B127: 0.4157096148 | C127: 0.3521267176 | D127: 88.86666107 | E127: 1000.81073 | F127: 1000.804382 | G127: 0 | H127: 0 | I127: 0 | J127: 87.19999695 | K127: 0 | L127: 1000.372009
A128: 3.333333254 | B128: 0.4016246796 | C128: 0.3659849465 | D128: 90.53333282 | E128: 1000.813782 | F128: 1000.806946 | G128: 0 | H128: 0 | I128: 0 | J128: 87.19999695 | K128: 0 | L128: 1000.372009
A129: 5 | B129: 0.3874035478 | C129: 0.3810127378 | D129: 92.19999695 | E129: 1000.816833 | F129: 1000.809387 | G129: 0 | H129: 0 | I129: 0 | J129: 87.19999695 | K129: 0 | L129: 1000.372009
A130: 6.666666508 | B130: 0.3738558292 | C130: 0.3964051902 | D130: 93.86666107 | E130: 1000.820557 | F130: 1000.812561 | G130: 0 | H130: 0 | I130: 0 | J130: 87.19999695 | K130: 0 | L130: 1000.372009
A131: 8.333333015 | B131: 0.3605045676 | C131: 0.4127192497 | D131: 95.53333282 | E131: 1000.824524 | F131: 1000.815857 | G131: 0 | H131: 0 | I131: 0 | J131: 87.19999695 | K131: 0 | L131: 1000.372009
A132: 10 | B132: 0.3477760553 | C132: 0.4294513166 | D132: 97.19999695 | E132: 1000.829163 | F132: 1000.819763 | G132: 0 | H132: 0 | I132: 0 | J132: 87.19999695 | K132: 0 | L132: 1000.372009
A133: 11.66666698 | B133: 0.3355466127 | C133: 0.4467351735 | D133: 98.86666107 | E133: 1000.834412 | F133: 1000.824219 | G133: 0 | H133: 0 | I133: 0 | J133: 87.19999695 | K133: 0 | L133: 1000.372009
A134: 13.33333397 | B134: 0.3239546418 | C134: 0.4643342495 | D134: 100.5333328 | E134: 1000.840271 | F134: 1000.829285 | G134: 0 | H134: 0 | I134: 0 | J134: 87.19999695 | K134: 0 | L134: 1000.372009
A135: 15.00000095 | B135: 0.3131090999 | C135: 0.4819906056 | D135: 102.1999969 | E135: 1000.846985 | F135: 1000.835144 | G135: 0 | H135: 0 | I135: 0 | J135: 87.19999695 | K135: 0 | L135: 1000.372009
A136: 16.66666794 | B136: 0.3025164604 | C136: 0.500467658 | D136: 103.8666687 | E136: 1000.853943 | F136: 1000.841187 | G136: 0 | H136: 0 | I136: 0 | J136: 87.19999695 | K136: 0 | L136: 1000.372009
A137: 18.33333397 | B137: 0.2932099104 | C137: 0.5178117752 | D137: 105.5333328 | E137: 1000.862244 | F137: 1000.848572 | G137: 0 | H137: 0 | I137: 0 | J137: 87.19999695 | K137: 0 | L137: 1000.372009
A138: 20 | B138: 0.284450531 | C138: 0.5351808071 | D138: 107.1999969 | E138: 1000.871094 | F138: 1000.856445 | G138: 0 | H138: 0 | I138: 0 | J138: 87.19999695 | K138: 0 | L138: 1000.372009
A139: 21.66666603 | B139: 0.2764309049 | C139: 0.5520550609 | D139: 108.8666611 | E139: 1000.880676 | F139: 1000.865112 | G139: 0 | H139: 0 | I139: 0 | J139: 87.19999695 | K139: 0 | L139: 1000.372009
A140: 23.33333206 | B140: 0.2698522806 | C140: 0.5666511655 | D140: 110.5333252 | E140: 1000.891541 | F140: 1000.875183 | G140: 0 | H140: 0 | I140: 0 | J140: 87.19999695 | K140: 0 | L140: 1000.372009
A141: 24.99999809 | B141: 0.2637518644 | C141: 0.5808410645 | D141: 112.1999969 | E141: 1000.902954 | F141: 1000.885742 | G141: 0 | H141: 0 | I141: 0 | J141: 87.19999695 | K141: 0 | L141: 1000.372009
A142: 26.66666412 | B142: 0.2588905692 | C142: 0.5926305056 | D142: 113.8666611 | E142: 1000.915466 | F142: 1000.897583 | G142: 0 | H142: 0 | I142: 0 | J142: 87.19999695 | K142: 0 | L142: 1000.372009
A143: 28.33333015 | B143: 0.2550167441 | C143: 0.6023488045 | D143: 115.5333252 | E143: 1000.928833 | F143: 1000.910339 | G143: 0 | H143: 0 | I143: 0 | J143: 87.19999695 | K143: 0 | L143: 1000.372009
A144: 29.99999619 | B144: 0.2516923547 | C144: 0.6109287143 | D144: 117.1999969 | E144: 1000.942749 | F144: 1000.923706 | G144: 0 | H144: 0 | I144: 0 | J144: 87.19999695 | K144: 0 | L144: 1000.372009
A145: 31.66666222 | B145: 0.2490951717 | C145: 0.6177919507 | D145: 118.8666611 | E145: 1000.957214 | F145: 1000.937744 | G145: 0 | H145: 0 | I145: 0 | J145: 87.19999695 | K145: 0 | L145: 1000.372009
A146: 33.33332825 | B146: 0.2470661104 | C146: 0.6232548952 | D146: 120.5333252 | E146: 1000.972229 | F146: 1000.952393 | G146: 0 | H146: 0 | I146: 0 | J146: 87.19999695 | K146: 0 | L146: 1000.372009
A147: 34.99999619 | B147: 0.2457073629 | C147: 0.6269638538 | D147: 122.1999969 | E147: 1000.987732 | F147: 1000.967712 | G147: 0 | H147: 0 | I147: 0 | J147: 87.19999695 | K147: 0 | L147: 1000.372009
A148: 36.66666412 | B148: 0.2446033657 | C148: 0.630007863 | D148: 123.8666611 | E148: 1001.00354 | F148: 1000.983276 | G148: 0 | H148: 0 | I148: 0 | J148: 87.19999695 | K148: 0 | L148: 1000.372009
A149: 38.33333206 | B149: 0.2431083918 | C149: 0.6341742873 | D149: 125.5333252 | E149: 1001.018982 | F149: 1000.998474 | G149: 0 | H149: 0 | I149: 0 | J149: 87.19999695 | K149: 0 | L149: 1000.372009
A150: 40 | B150: 0.2418750525 | C150: 0.6376504302 | D150: 127.1999969 | E150: 1001.034607 | F150: 1001.013855 | G150: 0 | H150: 0 | I150: 0 | J150: 87.19999695 | K150: 0 | L150: 1000.372009
A151: 41.66666794 | B151: 0.2398194522 | C151: 0.6435240507 | D151: 128.8666687 | E151: 1001.049622 | F151: 1001.028503 | G151: 0 | H151: 0 | I151: 0 | J151: 87.19999695 | K151: 0 | L151: 1000.372009
A152: 43.33333588 | B152: 0.2398194522 | C152: 0.6435240507 | D152: 130.5333252 | E152: 1001.066284 | F152: 1001.045166 | G152: 0 | H152: 0 | I152: 0 | J152: 87.19999695 | K152: 0 | L152: 1000.372009
A153: 45.00000381 | B153: 0.2398194522 | C153: 0.6435240507 | D153: 132.1999969 | E153: 1001.082947 | F153: 1001.061829 | G153: 0 | H153: 0 | I153: 0 | J153: 87.19999695 | K153: 0 | L153: 1000.372009
A154: 46.66667175 | B154: 0.2398194522 | C154: 0.6435240507 | D154: 133.8666687 | E154: 1001.099609 | F154: 1001.078491 | G154: 0 | H154: 0 | I154: 0 | J154: 87.19999695 | K154: 0 | L154: 1000.372009
A155: 48.33333969 | B155: 0.2398194522 | C155: 0.6435240507 | D155: 135.5333405 | E155: 1001.116272 | F155: 1001.095154 | G155: 0 | H155: 0 | I155: 0 | J155: 87.19999695 | K155: 0 | L155: 1000.372009
A156: 50.00000763 | B156: 0.2398194522 | C156: 0.6435240507 | D156: 137.2000122 | E156: 1001.132935 | F156: 1001.111816 | G156: 0 | H156: 0 | I156: 0 | J156: 87.19999695 | K156: 0 | L156: 1000.372009
A157: 0 | B157: 3.005694628 | C157: 1.108772635 | D157: 192 | E157: 100.8683777 | F157: 100.8056946 | G157: 0 | H157: 0 | I157: 0 | J157: 192 | K157: 0 | L157: 97.80000305
A158: 3.333333254 | B158: 2.946011066 | C158: 1.133782148 | D158: 195.3333282 | E158: 100.8782272 | F158: 100.8126831 | G158: 0 | H158: 0 | I158: 0 | J158: 192 | K158: 0 | L158: 97.80000305
A159: 6.666666508 | B159: 2.886265755 | C159: 1.159973621 | D159: 198.6666718 | E159: 100.8882065 | F159: 100.819603 | G159: 0 | H159: 0 | I159: 0 | J159: 192 | K159: 0 | L159: 97.80000305
A160: 10 | B160: 2.827318192 | C160: 1.187029004 | D160: 202 | E160: 100.8991699 | F160: 100.8273239 | G160: 0 | H160: 0 | I160: 0 | J160: 192 | K160: 0 | L160: 97.80000305
A161: 13.33333302 | B161: 2.76871109 | C161: 1.215209007 | D161: 205.3333282 | E161: 100.910675 | F161: 100.8353806 | G161: 0 | H161: 0 | I161: 0 | J161: 192 | K161: 0 | L161: 97.80000305
A162: 16.66666603 | B162: 2.71065712 | C162: 1.244473934 | D162: 208.6666718 | E162: 100.9229584 | F162: 100.8439941 | G162: 0 | H162: 0 | I162: 0 | J162: 192 | K162: 0 | L162: 97.80000305
A163: 20 | B163: 2.653356552 | C163: 1.274774909 | D163: 212 | E163: 100.9362183 | F163: 100.853363 | G163: 0 | H163: 0 | I163: 0 | J163: 192 | K163: 0 | L163: 97.80000305
A164: 23.33333397 | B164: 2.596485138 | C164: 1.306344151 | D164: 215.3333282 | E164: 100.9501724 | F164: 100.8631516 | G164: 0 | H164: 0 | I164: 0 | J164: 192 | K164: 0 | L164: 97.80000305
A165: 26.66666794 | B165: 2.540057659 | C165: 1.339251161 | D165: 218.6666718 | E165: 100.9648514 | F165: 100.8733978 | G165: 0 | H165: 0 | I165: 0 | J165: 192 | K165: 0 | L165: 97.80000305
A166: 30.00000191 | B166: 2.484125614 | C166: 1.373547435 | D166: 222 | E166: 100.9803238 | F166: 100.8841324 | G166: 0 | H166: 0 | I166: 0 | J166: 192 | K166: 0 | L166: 97.80000305
A167: 33.33333588 | B167: 2.429842949 | C167: 1.408554554 | D167: 225.3333435 | E167: 100.997673 | F167: 100.8965149 | G167: 0 | H167: 0 | I167: 0 | J167: 192 | K167: 0 | L167: 97.80000305
A168: 36.66666794 | B168: 2.37571907 | C168: 1.44528234 | D168: 228.6666718 | E168: 101.015564 | F168: 100.9090576 | G168: 0 | H168: 0 | I168: 0 | J168: 192 | K168: 0 | L168: 97.80000305
A169: 40 | B169: 2.322916031 | C169: 1.483007669 | D169: 232 | E169: 101.0350571 | F169: 100.9229202 | G169: 0 | H169: 0 | I169: 0 | J169: 192 | K169: 0 | L169: 97.80000305
A170: 43.33333206 | B170: 2.2709589 | C170: 1.52210176 | D170: 235.3333282 | E170: 101.0557632 | F170: 100.9376297 | G170: 0 | H170: 0 | I170: 0 | J170: 192 | K170: 0 | L170: 97.80000305
A171: 46.66666412 | B171: 2.220194817 | C171: 1.562341452 | D171: 238.6666565 | E171: 101.0779877 | F171: 100.9535294 | G171: 0 | H171: 0 | I171: 0 | J171: 192 | K171: 0 | L171: 97.80000305
A172: 49.99999619 | B172: 2.170933723 | C172: 1.603477478 | D172: 242 | E172: 101.1020355 | F172: 100.9709396 | G172: 0 | H172: 0 | I172: 0 | J172: 192 | K172: 0 | L172: 97.80000305
A173: 53.33332825 | B173: 2.122896671 | C173: 1.645732403 | D173: 245.3333282 | E173: 101.1276703 | F173: 100.989563 | G173: 0 | H173: 0 | I173: 0 | J173: 192 | K173: 0 | L173: 97.80000305
A174: 56.66666031 | B174: 2.076453924 | C174: 1.688757539 | D174: 248.6666565 | E174: 101.1552048 | F174: 101.0097885 | G174: 0 | H174: 0 | I174: 0 | J174: 192 | K174: 0 | L174: 97.80000305
A175: 59.99999237 | B175: 2.032151222 | C175: 1.731950402 | D175: 252 | E175: 101.1851044 | F175: 101.0321579 | G175: 0 | H175: 0 | I175: 0 | J175: 192 | K175: 0 | L175: 97.80000305
A176: 63.33332443 | B176: 1.989564419 | C176: 1.77560544 | D176: 255.3333282 | E176: 101.2169876 | F176: 101.0562363 | G176: 0 | H176: 0 | I176: 0 | J176: 192 | K176: 0 | L176: 97.80000305
A177: 66.66665649 | B177: 1.949029922 | C177: 1.819251418 | D177: 258.6666565 | E177: 101.2511215 | F177: 101.0823669 | G177: 0 | H177: 0 | I177: 0 | J177: 192 | K177: 0 | L177: 97.80000305
A178: 69.99999237 | B178: 1.910151958 | C178: 1.863178015 | D178: 262 | E178: 101.2871628 | F178: 101.1101532 | G178: 0 | H178: 0 | I178: 0 | J178: 192 | K178: 0 | L178: 97.80000305
A179: 73.33332825 | B179: 1.873950124 | C179: 1.906032443 | D179: 265.333313 | E179: 101.3258591 | F179: 101.1406174 | G179: 0 | H179: 0 | I179: 0 | J179: 192 | K179: 0 | L179: 97.80000305
A180: 76.66666412 | B180: 1.840024948 | C180: 1.948020339 | D180: 268.6666565 | E180: 101.3668518 | F180: 101.1733627 | G180: 0 | H180: 0 | I180: 0 | J180: 192 | K180: 0 | L180: 97.80000305
A181: 80 | B181: 1.808858991 | C181: 1.988257408 | D181: 272 | E181: 101.4104309 | F181: 101.2088623 | G181: 0 | H181: 0 | I181: 0 | J181: 192 | K181: 0 | L181: 97.80000305
A182: 83.33333588 | B182: 1.780329704 | C182: 2.026575565 | D182: 275.3333435 | E182: 101.4564133 | F182: 101.2470016 | G182: 0 | H182: 0 | I182: 0 | J182: 192 | K182: 0 | L182: 97.80000305
A183: 86.66667175 | B183: 1.754527688 | C183: 2.062525272 | D183: 278.666687 | E183: 101.504776 | F183: 101.2878647 | G183: 0 | H183: 0 | I183: 0 | J183: 192 | K183: 0 | L183: 97.80000305
A184: 90.00000763 | B184: 1.731467247 | C184: 2.095751762 | D184: 282 | E184: 101.5554276 | F184: 101.3314667 | G184: 0 | H184: 0 | I184: 0 | J184: 192 | K184: 0 | L184: 97.80000305
A185: 93.33334351 | B185: 1.710856915 | C185: 2.126367331 | D185: 285.3333435 | E185: 101.6080704 | F185: 101.3775253 | G185: 0 | H185: 0 | I185: 0 | J185: 192 | K185: 0 | L185: 97.80000305
A186: 96.66667938 | B186: 1.69291091 | C186: 2.153763056 | D186: 288.666687 | E186: 101.6627731 | F186: 101.4262466 | G186: 0 | H186: 0 | I186: 0 | J186: 192 | K186: 0 | L186: 97.80000305
A187: 100.0000153 | B187: 1.67811954 | C187: 2.176879406 | D187: 292 | E187: 101.7197495 | F187: 101.4781265 | G187: 0 | H187: 0 | I187: 0 | J187: 192 | K187: 0 | L187: 97.80000305
A188: 0 | B188: 2.07074213 | C188: 1.193703294 | D188: 210 | E188: 103.2433929 | F188: 103.1707382 | G188: 0 | H188: 0 | I188: 0 | J188: 210 | K188: 0 | L188: 101.0999985
A189: 3.333333254 | B189: 2.07473278 | C189: 1.190678239 | D189: 213.3333282 | E189: 103.250351 | F189: 103.1780624 | G189: 0 | H189: 0 | I189: 0 | J189: 210 | K189: 0 | L189: 101.0999985
A190: 6.666666508 | B190: 2.078688622 | C190: 1.187694669 | D190: 216.6666718 | E190: 103.2572784 | F190: 103.1853561 | G190: 0 | H190: 0 | I190: 0 | J190: 210 | K190: 0 | L190: 101.0999985
A191: 10 | B191: 2.082609653 | C191: 1.184751987 | D191: 220 | E191: 103.2641754 | F191: 103.1926117 | G191: 0 | H191: 0 | I191: 0 | J191: 210 | K191: 0 | L191: 101.0999985
A192: 13.33333302 | B192: 2.086496115 | C192: 1.181849718 | D192: 223.3333282 | E192: 103.2710495 | F192: 103.1998291 | G192: 0 | H192: 0 | I192: 0 | J192: 210 | K192: 0 | L192: 101.0999985
A193: 16.66666603 | B193: 2.090348482 | C193: 1.178986907 | D193: 226.6666718 | E193: 103.2778854 | F193: 103.207016 | G193: 0 | H193: 0 | I193: 0 | J193: 210 | K193: 0 | L193: 101.0999985
A194: 20 | B194: 2.094167233 | C194: 1.17616272 | D194: 230 | E194: 103.2846985 | F194: 103.2141647 | G194: 0 | H194: 0 | I194: 0 | J194: 210 | K194: 0 | L194: 101.0999985
A195: 23.33333397 | B195: 2.097951889 | C195: 1.173377037 | D195: 233.3333282 | E195: 103.2914886 | F195: 103.221283 | G195: 0 | H195: 0 | I195: 0 | J195: 210 | K195: 0 | L195: 101.0999985
A196: 26.66666794 | B196: 2.101703644 | C196: 1.170628548 | D196: 236.6666718 | E196: 103.2982407 | F196: 103.2283707 | G196: 0 | H196: 0 | I196: 0 | J196: 210 | K196: 0 | L196: 101.0999985
A197: 30.00000191 | B197: 2.105422258 | C197: 1.167917013 | D197: 240 | E197: 103.3049698 | F197: 103.2354202 | G197: 0 | H197: 0 | I197: 0 | J197: 210 | K197: 0 | L197: 101.0999985
A198: 33.33333588 | B198: 2.109108448 | C198: 1.16524148 | D198: 243.3333435 | E198: 103.311676 | F198: 103.2424393 | G198: 0 | H198: 0 | I198: 0 | J198: 210 | K198: 0 | L198: 101.0999985
A199: 36.66666794 | B199: 2.112762213 | C199: 1.16260159 | D199: 246.6666718 | E199: 103.3183441 | F199: 103.2494278 | G199: 0 | H199: 0 | I199: 0 | J199: 210 | K199: 0 | L199: 101.0999985
A200: 40 | B200: 2.116383553 | C200: 1.159996986 | D200: 250 | E200: 103.3249893 | F200: 103.2563782 | G200: 0 | H200: 0 | I200: 0 | J200: 210 | K200: 0 | L200: 101.0999985
... 18 more rows
